Workbook

Sheet Radian version
A2: Input Data | L2: Static scroll
A3: Pitch of scroll | B3: 15 | C3: mm | L3: Inner involute profile
A4: Scroll Vane thickness | B4: 4 | C4: mm | L4: x = r * Cos( t ) + ( t * r - T/2) * Sin( t )
A5: Number of Wraps | B5: 3.5 | L5: y = r * Sin( t ) - ( t * r - T/2) * Cos( t ) | P5: Centre line of static wrap
P6: x = r * Cos( t ) + ( r * t ) * Sin( t )
A7: Basic definition - do not change | L7: Outer involute profile | P7: y = r * Sin( t ) - ( r * t ) * Cos( t ) | AA7: =Y18-Y17 -> 2700
A8: Rate of radius increase = P/2*pi | B8: =B3/(2*PI()) -> 2.387324146 | C8: mm | D8: r | L8: x = r * Cos( t ) + ( t * r + T/2) * Sin( t ) | AD8: =360+180 -> 540
A9: Scroll profile pitch | B9: =B3 -> 15 | C9: mm | D9: P | L9: y = r * Sin( t ) - ( t * r + T/2) * Cos( t )
A10: Scroll vane thickness | B10: =B4 -> 4 | C10: mm | D10: T | Z10: =1260-720 -> 540
A11: Rotational radius = (P-2*T)/2 | B11: =(B9-2*B10)/2 -> 3.5 | C11: mm | D11: R | L11: Dynamic Scroll - rotated by 180 degrees (pi())
A12: t min | B12: 1 | C12: Radians | L12: Inner involute profile
A13: t max = waraps * 2 * PI() | B13: =B5*2*PI() -> 21.99114858 | C13: Radians | L13: x = r * Cos( pi() + t ) + ( t * r - T/2 ) * Sin( pi() + t ) + R * Sin( Rotation )
A14: Clearance between wraps | B14: 0.1 | C14: mm | L14: y = r * Sin( pi() + t ) - ( t * r - T/2 ) * Cos( pi() + t ) + R * Cos( Rotation )
A16: Number of rotations | B16: 2 | L16: Outer involute pofile
A17: Degrees per step | B17: 5 | L17: x = r * Cos( pi() + t ) + ( t * r + T/2) * Sin( pi() + t ) + R * Sin( Rotation ) | X17: Scroll angle | Y17: =Q29 -> -1080 | Z17: deg | AA17: =IF((Y17+360)>0, Y17+360-1080, Y17+360) -> -720 | AB17: =IF((Y17+720)>0, Y17+720-1080, Y17+720) -> -360
A18: Direction (-1 expand, 1 comp) | B18: -1 | L18: y = r * Sin( pi() + t ) - ( t * r + T/2) * Cos( pi() + t ) + R * Cos( Rotation ) | X18: Static t | Y18: =540-Y17 -> 1620 | Z18: deg | AA18: =540-AA17 -> 1260 | AB18: =540-AB17 -> 900 | AD18: =Y22 -> 21.99114858 | AE18: =$B$8*COS(AD18)+(($B$8*AD18)-($B$10/2)+($B$14/2))*SIN(AD18) -> -2.387324146 | AF18: =$B$8*SIN(AD18) - (($B$8*AD18)-($B$10/2)+($B$14/2))*COS(AD18) -> 50.55 | AH18: =Y25 -> 18.84955592 | AI18: =$B$8*COS(PI()+AH18)+(($B$8*AH18)+($B$10/2)-($B$14/2))*SIN(PI()+AH18)+$B$11*SIN($R$29) -> -2.387324146 | AJ18: =$B$8*SIN(PI()+AH18) - (($B$8*AH18)+($B$10/2)-($B$14/2))*COS(PI()+AH18)+$B$11*COS($R$29) -> 50.45 | AL18: =AA22 -> 15.70796327 | AM18: =$B$8*COS(AL18)+(($B$8*AL18)-($B$10/2)+($B$14/2))*SIN(AL18) -> -2.387324146 | AN18: =$B$8*SIN(AL18) - (($B$8*AL18)-($B$10/2)+($B$14/2))*COS(AL18) -> 35.55 | AP18: =AA25 -> 12.56637061 | AQ18: =$B$8*COS(PI()+AP18)+(($B$8*AP18)+($B$10/2)-($B$14/2))*SIN(PI()+AP18)+$B$11*SIN($R$29) -> -2.387324146 | AR18: =$B$8*SIN(PI()+AP18) - (($B$8*AP18)+($B$10/2)-($B$14/2))*COS(PI()+AP18)+$B$11*COS($R$29) -> 35.45 | AT18: =AB22 -> 9.424777961 | AU18: =$B$8*COS(AT18)+(($B$8*AT18)-($B$10/2)+($B$14/2))*SIN(AT18) -> -2.387324146 | AV18: =$B$8*SIN(AT18) - (($B$8*AT18)-($B$10/2)+($B$14/2))*COS(AT18) -> 20.55 | AX18: =AB25 -> 6.283185307 | AY18: =$B$8*COS(PI()+AX18)+(($B$8*AX18)+($B$10/2)-($B$14/2))*SIN(PI()+AX18)+$B$11*SIN($R$29) -> -2.387324146 | AZ18: =$B$8*SIN(PI()+AX18) - (($B$8*AX18)+($B$10/2)-($B$14/2))*COS(PI()+AX18)+$B$11*COS($R$29) -> 20.45
X19: Dynamic t | Y19: =Y18-180 -> 1440 | Z19: deg | AA19: =AA18-180 -> 1080 | AB19: =AB18-180 -> 720 | AD19: =IF( AD18>=21.99115, 21.99115, AD18+0.0872664625997164) -> 22.07841504 | AE19: -6.8021199 | AF19: 50.35711354 | AH19: =IF( AH18>=18.84956, 18.84956, AH18+0.0872664625997164) -> 18.93682238 | AI19: -6.488359226 | AJ19: 50.27081263 | AL19: =IF( AL18>=21.99115, 21.99115, AL18+0.0872664625997164) -> 15.79522973 | AM19: -5.494783758 | AN19: 35.41419307 | AP19: =IF( AP18>=18.84956, 18.84956, AP18+0.0872664625997164) -> 12.65363708 | AQ19: -5.181023084 | AR19: 35.32789216 | AT19: =IF( AT18>=21.99115, 21.99115, AT18+0.0872664625997164) -> 9.512044423 | AU19: -4.187447617 | AV19: 20.4712726 | AX19: =IF( AX18>=18.84956, 18.84956, AX18+0.0872664625997164) -> 6.37045177 | AY19: -3.873686943 | AZ19: 20.38497169
A20: Graph parameters may need changing if | AD20: =IF( AD19>=21.99115, 21.99115, AD19+0.0872664625997164) -> 21.99115 | AE20: -2.387396174 | AF20: 50.55 | AH20: =IF( AH19>=18.84956, 18.84956, AH19+0.0872664625997164) -> 18.84956 | AI20: -2.38751563 | AJ20: 50.45 | AL20: =IF( AL19>=21.99115, 21.99115, AL19+0.0872664625997164) -> 15.88249619 | AM20: -8.596601452 | AN20: 35.0056977 | AP20: =IF( AP19>=18.84956, 18.84956, AP19+0.0872664625997164) -> 12.74090354 | AQ20: -7.971468012 | AR20: 34.96038978 | AT20: =IF( AT19>=21.99115, 21.99115, AT19+0.0872664625997164) -> 9.599310886 | AU20: -5.991878787 | AV20: 20.2335814 | AX20: =IF( AX19>=18.84956, 18.84956, AX19+0.0872664625997164) -> 6.457718232 | AY20: -5.366745347 | AZ20: 20.18827349
A21: you change the number of wraps | Y21: =Y18*2*PI()/360 -> 28.27433388 | AA21: =AA18*2*PI()/360 -> 21.99114858 | AB21: =AB18*2*PI()/360 -> 15.70796327 | AD21: 21.99115 | AE21: -2.387396174 | AF21: 50.55 | AH21: 18.84956 | AI21: -2.38751563 | AJ21: 50.45 | AL21: 15.96976266 | AM21: -11.66875701 | AN21: 34.32448181 | AP21: 12.82817 | AQ21: -10.73700844 | AR21: 34.34714884 | AT21: 9.686577349 | AU21: -7.786471329 | AV21: 19.83559442 | AX21: 6.544984695 | AY21: -6.854722766 | AZ21: 19.85826144
Y22: =(Y18-360)*2*PI()/360 -> 21.99114858 | AA22: =(AA18-360)*2*PI()/360 -> 15.70796327 | AB22: =(AB18-360)*2*PI()/360 -> 9.424777961 | AD22: 21.99115 | AE22: -2.387396174 | AF22: 50.55 | AH22: 18.84956 | AI22: -2.38751563 | AJ22: 50.45 | AL22: 16.05702912 | AM22: -14.68718377 | AN22: 33.37263691 | AP22: 12.91543646 | AQ22: -13.45591125 | AR22: 33.48974347 | AT22: 9.773843811 | AU22: -9.556881615 | AV22: 19.27724759 | AX22: 6.632251158 | AY22: -8.325609099 | AZ22: 19.39435416
A23: www.redford-tech.co.uk | AD23: 21.99115 | AE23: -2.387396174 | AF23: 50.55 | AH23: 18.84956 | AI23: -2.38751563 | AJ23: 50.45 | AL23: 16.14429558 | AM23: -17.62795702 | AN23: 32.15438566 | AP23: 13.00270293 | AQ23: -16.10653128 | AR23: 32.39167763 | AT23: 9.861110274 | AU23: -11.2886831 | AV23: 18.55976885 | AX23: 6.71951762 | AY23: -9.767257357 | AZ23: 18.79706082
A24: simon@redford-tech.co.uk | Y24: =Y19*2*PI()/360 -> 25.13274123 | AA24: =AA19*2*PI()/360 -> 18.84955592 | AB24: =AB19*2*PI()/360 -> 12.56637061 | AD24: 21.99115 | AE24: -2.387396174 | AF24: 50.55 | AH24: 18.84956 | AI24: -2.38751563 | AJ24: 50.45 | AL24: 16.23156204 | AM24: -20.46748336 | AN24: 30.67607279 | AP24: 13.08996939 | AQ24: -18.66748336 | AR24: 31.05838133 | AT24: 9.948376736 | AU24: -12.96748336 | AV24: 17.68569173 | AX24: 6.806784083 | AY24: -11.16748336 | AZ24: 18.06800028
Y25: =(Y19-360)*2*PI()/360 -> 18.84955592 | AA25: =(AA19-360)*2*PI()/360 -> 12.56637061 | AB25: =(AB19-360)*2*PI()/360 -> 6.283185307 | AD25: 21.99115 | AE25: -2.387396174 | AF25: 50.55 | AH25: 18.84956 | AI25: -2.38751563 | AJ25: 50.45 | AL25: 16.31882851 | AM25: -23.1826894 | AN25: 28.94613903 | AP25: 13.17723585 | AQ25: -21.11781423 | AR25: 29.49719167 | AT25: 10.0356432 | AU25: -14.57904286 | AV25: 16.65885837 | AX25: 6.894050545 | AY25: -12.51416769 | AZ25: 17.20991101
B26: Circle radius | C26: 25 | AD26: 21.99115 | AE26: -2.387396174 | AF26: 50.55 | AH26: 18.84956 | AI26: -2.38751563 | AJ26: 50.45 | AL26: 16.40609497 | AM26: -25.7512086 | AN26: 26.97507831 | AP26: 13.26450232 | AQ26: -23.43717321 | AR26: 27.71731831 | AT26: 10.12290966 | AU26: -16.10939446 | AV26: 15.48441166 | AX26: 6.981317008 | AY26: -13.79535906 | AZ26: 16.22665167
A27: Copyright © Redford-Tech Limited, 2018 - 2023 | AD27: 21.99115 | AE27: -2.387396174 | AF27: 50.55 | AH27: 18.84956 | AI27: -2.38751563 | AJ27: 50.45 | AL27: 16.49336143 | AM27: -28.15156438 | AN27: 24.77537819 | AP27: 13.35176878 | AQ27: -25.60597997 | AR27: 25.72979378 | AT27: 10.21017612 | AU27: -17.54496266 | AV27: 14.16877648 | AX27: 7.068583471 | AY27: -14.99937825 | AZ27: 15.12319206
C28: Static scroll | I28: Dynamic scroll | Q28: Deg | R28: Radians | S28: Radius | AD28: 21.99115 | AE28: -2.387396174 | AF28: 50.55 | AH28: 18.84956 | AI28: -2.38751563 | AJ28: 50.45 | AL28: 16.58062789 | AM28: -30.36334826 | AN28: 22.36144398 | AP28: 13.43903524 | AQ28: -27.60558826 | AR28: 23.54740859 | AT28: 10.29744259 | AU28: -18.87268161 | AV28: 12.71962984 | AX28: 7.155849933 | AY28: -16.11492162 | AZ28: 13.90559444
B29: Radians | C29: Outer Involute | E29: Inner Involute | G29: Wrap centre | I29: Outer Involute | K29: Inner Involute | M29: Wrap centre | P29: Rotation | Q29: -1080 | R29: =Q29*PI()/180 -> -18.84955592 | S29: =B11 -> 3.5 | AD29: 21.99115 | AE29: -2.387396174 | AF29: 50.55 | AH29: 18.84956 | AI29: -2.38751563 | AJ29: 50.45 | AL29: 16.66789436 | AM29: -32.36739149 | AN29: 19.74950686 | AP29: 13.5263017 | AQ29: -29.41844413 | AR29: 21.18463169 | AT29: 10.38470905 | AU29: -20.08011082 | AV29: 11.14586031 | AX29: 7.243116396 | AY29: -17.13116346 | AZ29: 12.58098514
B30: t | C30: x | D30: y | E30: x | F30: y | G30: x | H30: y | I30: x | J30: y | K30: x | L30: y | M30: x | N30: y | X30: 0 | Y30: =$C$26*SIN(X30*PI()/180) -> 0 | Z30: =$C$26*COS(X30*PI()/180) -> 25 | AA30: =$C$26*SIN(X30*PI()/180)+$B$11*SIN($R$29) -> 2.572811755e-15 | AB30: =$C$26*COS(X30*PI()/180)+$B$11*COS($R$29) -> 28.5 | AD30: 21.99115 | AE30: -2.387396174 | AF30: 50.55 | AH30: 18.84956 | AI30: -2.38751563 | AJ30: 50.45 | AL30: 16.75516082 | AM30: -34.14592869 | AN30: 16.95751664 | AP30: 13.61356817 | AQ30: -31.02823723 | AR30: 18.65751664 | AT30: 10.47197551 | AU30: -21.15554763 | AV30: 9.457516642 | AX30: 7.330382858 | AY30: -18.03785618 | AZ30: 11.15751664
B31: 0 | C31: =$B$8*COS(B31)+(($B$8*B31)+($B$10/2) - ($B$14/2))*SIN(B31) -> 2.387324146 | D31: =$B$8*SIN(B31) - (B31*$B$8 + ($B$10/2) - ($B$14/2)) * COS(B31) -> -1.95 | I31: =$B$8*COS(PI()+B31)+(($B$8*B31)+($B$10/2)-($B$14/2))*SIN(PI()+B31)+$B$11*SIN($R$29) -> -2.387324146 | J31: =$B$8*SIN(PI()+B31) - (($B$8*B31)+($B$10/2)-($B$14/2))*COS(PI()+B31)+$B$11*COS($R$29) -> 5.45 | T31: -2.387324146 | U31: 5.74 | X31: 5 | Y31: 2.178893569 | Z31: 24.90486745 | AA31: 2.178893569 | AB31: 28.40486745 | AD31: 21.99115 | AE31: -2.387396174 | AF31: 50.55 | AH31: 18.84956 | AI31: -2.38751563 | AJ31: 50.45 | AL31: 16.84242728 | AM31: -35.6827522 | AN31: 14.00501987 | AP31: 13.70083463 | AQ31: -32.42004417 | AR31: 15.98359412 | AT31: 10.55924197 | AU31: -22.08813539 | AV31: 7.66574594 | AX31: 7.417649321 | AY31: -18.82542736 | AZ31: 9.644320198
B32: =B33-0.0872664625997164 -> 0.0400689114 | C32: 2.467353294 | D32: -1.948383645 | I32: -2.467353294 | J32: 5.448383645 | P32: Offset 1 | Q32: 270 | R32: deg | T32: -2.038701175 | U32: 5.724778792 | X32: 10 | Y32: 4.341204442 | Z32: 24.62019383 | AA32: 4.341204442 | AB32: 28.12019383 | AD32: 21.99115 | AE32: -2.387396174 | AF32: 50.55 | AH32: 18.84956 | AI32: -2.38751563 | AJ32: 50.45 | AL32: 16.92969374 | AM32: -36.96335576 | AN32: 10.91302396 | AP32: 13.78810109 | AQ32: -33.58046232 | AR32: 13.18175145 | AT32: 10.64650844 | AU32: -22.86796645 | AV32: 5.782721813 | AX32: 7.504915784 | AY32: -19.48507301 | AZ32: 8.051449297
B33: =B34-0.0872664625997164 -> 0.127335374 | C33: =$B$8*COS(B33)+(($B$8*B33)+($B$10/2) - ($B$14/2))*SIN(B33) -> 2.654233665 | D33: =$B$8*SIN(B33) - (B33*$B$8 + ($B$10/2) - ($B$14/2)) * COS(B33) -> -1.932572073 | I33: =$B$8*COS(PI()+B33)+(($B$8*B33)+($B$10/2)-($B$14/2))*SIN(PI()+B33)+$B$11*SIN($R$29) -> -2.654233665 | J33: =$B$8*SIN(PI()+B33) - (($B$8*B33)+($B$10/2)-($B$14/2))*COS(PI()+B33)+$B$11*COS($R$29) -> 5.432572073 | P33: Offset 2 | Q33: 90 | R33: deg | T33: -1.692731436 | U33: 5.679231012 | X33: 15 | Y33: 6.470476128 | Z33: 24.14814566 | AA33: 6.470476128 | AB33: 27.64814566 | AD33: 21.99115 | AE33: -2.387396174 | AF33: 50.55 | AH33: 18.84956 | AI33: -2.38751563 | AJ33: 50.45 | AL33: 17.01696021 | AM33: -37.97506629 | AN33: 7.703848521 | AP33: 13.87536755 | AQ33: -34.49773331 | AR33: 10.27209996 | AT33: 10.7337749 | AU33: -23.48617889 | AV33: 3.821562844 | AX33: 7.592182246 | AY33: -20.00884592 | AZ33: 6.389814282
B34: 0.2146018366 | C34: 2.856934596 | D34: -1.897440776 | I34: -2.856934596 | J34: 5.397440776 | P34: 0 | Q34: 0 | T34: -1.352047966 | U34: 5.603703305 | X34: 20 | Y34: 8.550503583 | Z34: 23.49231552 | AA34: 8.550503583 | AB34: 26.99231552 | AD34: 21.99115 | AE34: -2.387396174 | AF34: 50.55 | AH34: 18.84956 | AI34: -2.38751563 | AJ34: 50.45 | AL34: 17.10422667 | AM34: -38.70716262 | AN34: 4.400964647 | AP34: 13.96263402 | AQ34: -35.16185471 | AR34: 7.275831207 | AT34: 10.82104136 | AU34: -23.93504632 | AV34: 1.796241982 | AX34: 7.679448709 | AY34: -20.38973841 | AZ34: 4.671108542
B35: 0.3018682992 | C35: 3.073374404 | D35: -1.840135247 | I35: -3.073374404 | J35: 5.340135247 | P35: =60*COS(R29+Q32*PI()/180) -> 3.307900828e-14 | Q35: =-60*SIN(R29+Q32*PI()/180) -> 60 | T35: -1.019243573 | U35: 5.498770483 | X35: 25 | Y35: 10.56545654 | Z35: 22.65769468 | AA35: 10.56545654 | AB35: 26.15769468 | AD35: 21.99115 | AE35: -2.387396174 | AF35: 50.55 | AH35: 18.84956 | AI35: -2.38751563 | AJ35: 50.45 | AL35: 17.19149313 | AM35: -39.15098008 | AN35: 1.028823586 | AP35: 14.04990048 | AQ35: -35.56467917 | AR35: 4.215062912 | AT35: 10.90830782 | AU35: -24.20805961 | AV35: -0.2785125549 | AX35: 7.766715171 | AY35: -20.6217587 | AZ35: 2.907726771
B36: 0.3891347618 | C36: 3.301096809 | D36: -1.758028595 | G36: =$B$8*COS(B36)+($B$8*B36)*SIN(B36) -> 2.561290196 | H36: =$B$8*SIN(B36) - (B36*$B$8 ) * COS(B36) -> 0.04618485554 | I36: -3.301096809 | J36: 5.258028595 | M36: =$B$8*COS(PI()+B36)+($B$8*B36)*SIN(PI()+B36)+$B$11*SIN($R$29) -> -2.561290196 | N36: =$B$8*SIN(PI()+B36) - ($B$8*B36)*COS(PI()+B36)+$B$11*COS($R$29) -> 3.453815144 | T36: -0.3873241464 | U36: 5.204101615 | X36: 30 | Y36: 12.5 | Z36: 21.65063509 | AA36: 12.5 | AB36: 25.15063509 | AD36: 21.99115 | AE36: -2.387396174 | AF36: 50.55 | AH36: 18.84956 | AI36: -2.38751563 | AJ36: 50.45 | AL36: 17.27875959 | AM36: -39.3 | AN36: -2.387324146 | AP36: 14.13716694 | AQ36: -35.7 | AR36: 1.112675854 | AT36: 10.99557429 | AU36: -24.3 | AV36: -2.387324146 | AX36: 7.853981634 | AY36: -20.7 | AZ36: 1.112675854
B37: 0.4764012244 | C37: 3.53729578 | D37: -1.64876485 | G37: =$B$8*COS(B37)+($B$8*B37)*SIN(B37) -> 2.643056792 | H37: =$B$8*SIN(B37) - (B37*$B$8 ) * COS(B37) -> 0.08410462954 | I37: -3.53729578 | J37: 5.14876485 | M37: -2.643056792 | N37: 3.41589537 | T37: 0.1838262924 | U37: 4.804177772 | X37: 35 | Y37: 14.33941091 | Z37: 20.47880111 | AA37: 14.33941091 | AB37: 23.97880111 | AD37: 21.99115 | AE37: -2.387396174 | AF37: 50.55 | AH37: 18.84956 | AI37: -2.38751563 | AJ37: 50.45 | AL37: 17.36602606 | AM37: -39.14992319 | AN37: -5.821617794 | AP37: 14.2244334 | AQ37: -35.56362227 | AR37: -2.00785712 | AT37: 11.08284075 | AU37: -24.20700272 | AV37: -4.514281652 | AX37: 7.941248097 | AY37: -20.6207018 | AZ37: -0.7005209785
B38: 0.563667687 | C38: 3.778845061 | D38: -1.510299576 | E38: =$B$8*COS(B38)+(($B$8*B38)-($B$10/2)+($B$14/2))*SIN(B38) -> 1.69511373 | F38: =$B$8*SIN(B38) - (($B$8*B38)-($B$10/2)+($B$14/2))*COS(B38) -> 1.786375073 | G38: 2.736979396 | H38: 0.1380377488 | I38: -3.778845061 | J38: 5.010299576 | K38: =$B$8*COS(PI()+B38)+(($B$8*B38)-($B$10/2)+($B$14/2))*SIN(PI()+B38) +$B$11*SIN($R$29) -> -1.69511373 | L38: =$B$8*SIN(PI()+B38) - (($B$8*B38)-($B$10/2)+($B$14/2))*COS(PI()+B38)+$B$11*COS($R$29) -> 1.713624927 | M38: -2.736979396 | N38: 3.361962251 | T38: 0.6768536261 | U38: 4.311150439 | X38: 40 | Y38: 16.06969024 | Z38: 19.15111108 | AA38: 16.06969024 | AB38: 22.65111108 | AD38: 21.99115 | AE38: -2.387396174 | AF38: 50.55 | AH38: 18.84956 | AI38: -2.38751563 | AJ38: 50.45 | AL38: 17.45329252 | AM38: -38.69872677 | AN38: -9.247782118 | AP38: 14.31169987 | AQ38: -35.15341886 | AR38: -5.122648678 | AT38: 11.17010721 | AU38: -23.92661047 | AV38: -6.643059453 | AX38: 8.028514559 | AY38: -20.38130256 | AZ38: -2.517926013
B39: 0.6509341496 | C39: 4.022332072 | D39: -1.340937323 | E39: 1.65920584 | F39: 1.761583332 | G39: 2.840768956 | H39: 0.2103230047 | I39: -4.022332072 | J39: 4.840937323 | K39: -1.65920584 | L39: 1.738416668 | M39: -2.840768956 | N39: 3.289676995 | T39: 1.371446337 | U39: 3.108080573 | X39: 45 | Y39: 17.67766953 | Z39: 17.67766953 | AA39: 17.67766953 | AB39: 21.17766953 | AD39: 21.99115 | AE39: -2.387396174 | AF39: 50.55 | AH39: 18.84956 | AI39: -2.38751563 | AJ39: 50.45 | AL39: 17.54055898 | AM39: -37.94670366 | AN39: -12.63932842 | AP39: 14.39896633 | AQ39: -34.46937068 | AR39: -8.207579862 | AT39: 11.25737368 | AU39: -23.45781626 | AV39: -8.757042748 | AX39: 8.115781022 | AY39: -19.98048329 | AZ39: -4.325294186
B40: 0.7382006122 | C40: 4.264095861 | D40: -1.139365451 | E40: 1.639559547 | F40: 1.745389154 | G40: 2.951827704 | H40: 0.3030118513 | I40: -4.264095861 | J40: 4.639365451 | K40: -1.639559547 | L40: 1.754610846 | M40: -2.951827704 | N40: 3.196988149 | T40: 1.807314648 | U40: 1.608861823 | X40: 50 | Y40: 19.15111108 | Z40: 16.06969024 | AA40: 19.15111108 | AB40: 19.56969024 | AD40: 21.99115 | AE40: -2.387396174 | AF40: 50.55 | AH40: 18.84956 | AI40: -2.38751563 | AJ40: 50.45 | AL40: 17.62782545 | AM40: -36.89648423 | AN40: -15.9697593 | AP40: 14.48623279 | AQ40: -33.5135908 | AR40: -11.23848679 | AT40: 11.34464014 | AU40: -22.80109492 | AV40: -10.83945715 | AX40: 8.203047484 | AY40: -19.41820149 | AZ40: -6.108184637
B41: 0.8254670748 | C41: 4.500268731 | D41: -0.9046839221 | E41: 1.634296639 | F41: 1.740349909 | G41: 3.067282685 | H41: 0.4178329935 | I41: -4.500268731 | J41: 4.404683922 | K41: -1.634296639 | L41: 1.759650091 | M41: -3.067282685 | N41: 3.082167007 | T41: 2.387324146 | U41: -1.74 | X41: 55 | Y41: 20.47880111 | Z41: 14.33941091 | AA41: 20.47880111 | AB41: 17.83941091 | AD41: 21.99115 | AE41: -2.387396174 | AF41: 50.55 | AH41: 18.84956 | AI41: -2.38751563 | AJ41: 50.45 | AL41: 17.71509191 | AM41: -35.55303986 | AN41: -19.21277551 | AP41: 14.57349925 | AQ41: -32.29033183 | AR41: -14.19134976 | AT41: 11.4319066 | AU41: -21.95842306 | AV41: -12.87350158 | AX41: 8.290313947 | AY41: -18.69571502 | AZ41: -7.852075838
B42: =B43-0.0872664625997164 -> 0.9127335374 | C42: 4.7268211 | D42: -0.6364306714 | E42: 1.641225009 | F42: 1.748752081 | G42: 3.184023055 | H42: 0.5561607049 | I42: -4.7268211 | J42: 4.136430671 | K42: -1.641225009 | L42: 1.751247919 | M42: -3.184023055 | N42: 2.943839295 | P42: =I31 -> -2.387324146 | Q42: =J31 -> 5.45 | X42: 60 | Y42: 21.65063509 | Z42: 12.5 | AA42: 21.65063509 | AB42: 16 | AD42: 21.99115 | AE42: -2.387396174 | AF42: 50.55 | AH42: 18.84956 | AI42: -2.38751563 | AJ42: 50.45 | AL42: 17.80235837 | AM42: -33.92366805 | AN42: -22.34248336 | AP42: 14.66076572 | AQ42: -30.8059766 | AR42: -17.04248336 | AT42: 11.51917306 | AU42: -20.93328699 | AV42: -14.84248336 | AX42: 8.37758041 | AY42: -17.81559554 | AZ42: -9.542483358
B43: 1 | C43: =$B$8*COS(B43)+(($B$8*B43)+($B$10/2) - ($B$14/2))*SIN(B43) -> 4.939609162 | D43: =$B$8*SIN(B43) - (B43*$B$8 + ($B$10/2) - ($B$14/2)) * COS(B43) -> -0.3346022371 | E43: =$B$8*COS(B43)+(($B$8*B43)-($B$10/2)+($B$14/2))*SIN(B43) -> 1.657872321 | F43: =$B$8*SIN(B43) - (($B$8*B43)-($B$10/2)+($B$14/2))*COS(B43) -> 1.772576756 | G43: =$B$8*COS(B43)+($B$8*B43)*SIN(B43) -> 3.298740742 | H43: =$B$8*SIN(B43) - (B43*$B$8 ) * COS(B43) -> 0.7189872594 | I43: =$B$8*COS(PI()+B43)+(($B$8*B43)+($B$10/2)-($B$14/2))*SIN(PI()+B43)+$B$11*SIN($R$29) -> -4.939609162 | J43: =$B$8*SIN(PI()+B43) - (($B$8*B43)+($B$10/2)-($B$14/2))*COS(PI()+B43)+$B$11*COS($R$29) -> 3.834602237 | K43: =$B$8*COS(PI()+B43)+(($B$8*B43)-($B$10/2)+($B$14/2))*SIN(PI()+B43) +$B$11*SIN($R$29) -> -1.657872321 | L43: =$B$8*SIN(PI()+B43) - (($B$8*B43)-($B$10/2)+($B$14/2))*COS(PI()+B43)+$B$11*COS($R$29) -> 1.727423244 | M43: =$B$8*COS(PI()+B43)+($B$8*B43)*SIN(PI()+B43)+$B$11*SIN($R$29) -> -3.298740742 | N43: =$B$8*SIN(PI()+B43) - ($B$8*B43)*COS(PI()+B43)+$B$11*COS($R$29) -> 2.781012741 | P43: =K38 -> -1.69511373 | Q43: =L38 -> 1.713624927 | T43: 0.4 | U43: 0.4 | V43: 1.5 | X43: 65 | Y43: 22.65769468 | Z43: 10.56545654 | AA43: 22.65769468 | AB43: 14.06545654 | AD43: 21.99115 | AE43: -2.387396174 | AF43: 50.55 | AH43: 18.84956 | AI43: -2.38751563 | AJ43: 50.45 | AL43: 17.88962483 | AM43: -32.0179592 | AN43: -25.33360104 | AP43: 14.74803218 | AQ43: -29.06901184 | AR43: -19.76872587 | AT43: 11.60643953 | AU43: -19.73067853 | AV43: -16.72995449 | AX43: 8.464846872 | AY43: -16.78173117 | AZ43: -11.16507932
B44: =B43+0.0872664625997164 -> 1.087266463 | C44: =$B$8*COS(B44)+(($B$8*B44)+($B$10/2) - ($B$14/2))*SIN(B44) -> 5.134424836 | D44: =$B$8*SIN(B44) - (B44*$B$8 + ($B$10/2) - ($B$14/2)) * COS(B44) -> 0.0003306508973 | E44: =$B$8*COS(B44)+(($B$8*B44)-($B$10/2)+($B$14/2))*SIN(B44) -> 1.681523244 | F44: =$B$8*SIN(B44) - (($B$8*B44)-($B$10/2)+($B$14/2))*COS(B44) -> 1.81346898 | G44: 3.40797404 | H44: 0.9068998153 | I44: =$B$8*COS(PI()+B44)+(($B$8*B44)+($B$10/2)-($B$14/2))*SIN(PI()+B44)+$B$11*SIN($R$29) -> -5.134424836 | J44: =$B$8*SIN(PI()+B44) - (($B$8*B44)+($B$10/2)-($B$14/2))*COS(PI()+B44)+$B$11*COS($R$29) -> 3.499669349 | K44: =$B$8*COS(PI()+B44)+(($B$8*B44)-($B$10/2)+($B$14/2))*SIN(PI()+B44) +$B$11*SIN($R$29) -> -1.681523244 | L44: =$B$8*SIN(PI()+B44) - (($B$8*B44)-($B$10/2)+($B$14/2))*COS(PI()+B44)+$B$11*COS($R$29) -> 1.68653102 | M44: -3.40797404 | N44: 2.593100185 | T44: Vapour inlet/outlet port | X44: 70 | Y44: 23.49231552 | Z44: 8.550503583 | AA44: 23.49231552 | AB44: 12.05050358 | AD44: 21.99115 | AE44: -2.387396174 | AF44: 50.55 | AH44: 18.84956 | AI44: -2.38751563 | AJ44: 50.45 | AL44: 17.9768913 | AM44: -29.84774497 | AN44: -28.16166214 | AP44: 14.83529864 | AQ44: -27.08998498 | AR44: -22.34762674 | AT44: 11.69370599 | AU44: -18.35707832 | AV44: -18.51984799 | AX44: 8.552113335 | AY44: -15.59931833 | AZ44: -12.7058126
B45: =B44+0.0872664625997164 -> 1.174532925 | C45: 5.307047494 | D45: 0.3674127535 | E45: 1.709259817 | F45: 1.872711341 | G45: 3.508153655 | H45: 1.120062047 | I45: -5.307047494 | J45: 3.132587247 | K45: -1.709259817 | L45: 1.627288659 | M45: -3.508153655 | N45: 2.379937953 | S45: 0 | T45: =$V$43*SIN(S45)+$T$43 -> 0.4 | U45: =$V$43*COS(S45) + $U$43 -> 1.9 | X45: 75 | Y45: 24.14814566 | Z45: 6.470476128 | AA45: 24.14814566 | AB45: 9.970476128 | AD45: 21.99115 | AE45: -2.387396174 | AF45: 50.55 | AH45: 18.84956 | AI45: -2.38751563 | AJ45: 50.45 | AL45: 18.06415776 | AM45: -27.42702862 | AN45: -30.80321481 | AP45: 14.9225651 | AQ45: -24.88144421 | AR45: -24.7576304 | AT45: 11.78097245 | AU45: -16.8204269 | AV45: -20.19661309 | AX45: 8.639379797 | AY45: -14.27484249 | AZ45: -14.15102868
B46: 1.261799388 | C46: 5.45329692 | D46: 0.7651994626 | E46: 1.738004495 | F46: 1.951202077 | G46: 3.595650708 | H46: 1.35820077 | I46: -5.45329692 | J46: 2.734800537 | K46: -1.738004495 | L46: 1.548797923 | M46: -3.595650708 | N46: 2.14179923 | S46: =S45+2*PI()*5/360 -> 0.0872664626 | T46: =$V$43*SIN(S46)+$T$43 -> 0.5307336141 | U46: =$V$43*COS(S46) + $U$43 -> 1.894292047 | X46: 80 | Y46: 24.62019383 | Z46: 4.341204442 | AA46: 24.62019383 | AB46: 7.841204442 | AD46: 21.99115 | AE46: -2.387396174 | AF46: 50.55 | AH46: 18.84956 | AI46: -2.38751563 | AJ46: 50.45 | AL46: 18.15142422 | AM46: -24.77189752 | AN46: -33.23601492 | AP46: 15.00983157 | AQ46: -22.45786212 | AR46: -26.97825492 | AT46: 11.86823891 | AU46: -15.13008337 | AV46: -21.74534827 | AX46: 8.72664626 | AY46: -12.81604798 | AZ46: -15.48758828
B47: 1.34906585 | C47: 5.56908694 | D47: 1.191757528 | E47: 1.764565386 | F47: 2.049437974 | G47: 3.666826163 | H47: 1.620597751 | I47: -5.56908694 | J47: 2.308242472 | K47: -1.764565386 | L47: 1.450562026 | M47: -3.666826163 | N47: 1.879402249 | S47: =S46+2*PI()*5/360 -> 0.1745329252 | T47: 0.6604722665 | U47: 1.87721163 | X47: 85 | Y47: 24.90486745 | Z47: 2.178893569 | AA47: 24.90486745 | AB47: 5.678893569 | AD47: 21.99115 | AE47: -2.387396174 | AF47: 50.55 | AH47: 18.84956 | AI47: -2.38751563 | AJ47: 50.45 | AL47: 18.23869068 | AM47: -21.90041849 | AN47: -35.43921165 | AP47: 15.09709803 | AQ47: -19.83554332 | AR47: -28.99026429 | AT47: 11.95550538 | AU47: -13.29677195 | AV47: -23.15193099 | AX47: 8.813912723 | AY47: -11.23189678 | AZ47: -16.70298363
B48: 1.436332313 | C48: 5.650479147 | D48: =$B$8*SIN(B48) - (B48*$B$8 + ($B$10/2) - ($B$14/2)) * COS(B48) -> 1.644671443 | E48: =$B$8*COS(B48)+(($B$8*B48)-($B$10/2)+($B$14/2))*SIN(B48) -> 1.78568317 | F48: =$B$8*SIN(B48) - (($B$8*B48)-($B$10/2)+($B$14/2))*COS(B48) -> 2.167502254 | G48: 3.718081159 | H48: 1.906086849 | I48: -5.650479147 | J48: 1.855328557 | K48: -1.78568317 | L48: 1.332497746 | M48: -3.718081159 | N48: 1.593913151 | S48: 0.2617993878 | T48: 0.7882285677 | U48: 1.848888739 | X48: 90 | Y48: 25 | Z48: 1.531435569e-15 | AA48: 25 | AB48: 3.5 | AD48: 21.99115 | AE48: -2.387396174 | AF48: 50.55 | AH48: 18.84956 | AI48: -2.38751563 | AJ48: 50.45 | AL48: 18.32595715 | AM48: -18.83251664 | AN48: -37.39352395 | AP48: 15.18436449 | AQ48: -17.03251664 | AR48: -30.7758325 | AT48: 12.04277184 | AU48: -11.33251664 | AV48: -24.40314289 | AX48: 8.901179185 | AY48: -9.532516642 | AZ48: -17.78545144
B49: 1.523598776 | C49: 5.693736141 | D49: 2.121055506 | E49: 1.798079171 | F49: 2.305057624 | G49: 3.745907656 | H49: 2.213056565 | I49: -5.693736141 | J49: 1.378944494 | K49: -1.798079171 | L49: 1.194942376 | M49: -3.745907656 | N49: 1.286943435 | S49: 0.3490658504 | T49: 0.913030215 | U49: 1.809538931 | X49: 95 | Y49: 24.90486745 | Z49: -2.178893569 | AA49: 24.90486745 | AB49: 1.321106431 | AD49: 21.99115 | AE49: -2.387396174 | AF49: 50.55 | AH49: 18.84956 | AI49: -2.38751563 | AJ49: 50.45 | AL49: 18.41322361 | AM49: -15.58983835 | AN49: -39.0814064 | AP49: 15.27163095 | AQ49: -14.06841261 | AR49: -32.31869837 | AT49: 12.1300383 | AU49: -9.250564422 | AV49: -25.4867896 | AX49: 8.988445648 | AY49: -7.72913868 | AZ49: -18.72408156
B50: 1.610865238 | C50: 5.695373702 | D50: 2.617571508 | E50: 1.798504042 | F50: 2.461344565 | G50: 3.746938872 | H50: 2.539458037 | I50: -5.695373702 | J50: 0.8824284921 | K50: -1.798504042 | L50: 1.038655435 | M50: -3.746938872 | N50: 0.9605419633 | S50: 0.436332313 | T50: 1.033927393 | U50: 1.759461681 | X50: 100 | Y50: 24.62019383 | Z50: -4.341204442 | AA50: 24.62019383 | AB50: -0.8412044417 | AD50: 21.99115 | AE50: =$B$8*COS(AD50)+(($B$8*AD50)-($B$10/2)+($B$14/2))*SIN(AD50) -> -2.387396174 | AF50: =$B$8*SIN(AD50) - (($B$8*AD50)-($B$10/2)+($B$14/2))*COS(AD50) -> 50.55 | AH50: 18.84956 | AI50: =$B$8*COS(PI()+AH50)+(($B$8*AH50)+($B$10/2)-($B$14/2))*SIN(PI()+AH50)+$B$11*SIN($R$29) -> -2.38751563 | AJ50: =$B$8*SIN(PI()+AH50) - (($B$8*AH50)+($B$10/2)-($B$14/2))*COS(PI()+AH50)+$B$11*COS($R$29) -> 50.45 | AL50: 18.50049007 | AM50: =$B$8*COS(AL50)+(($B$8*AL50)-($B$10/2)+($B$14/2))*SIN(AL50) -> -12.1955995 | AN50: =$B$8*SIN(AL50) - (($B$8*AL50)-($B$10/2)+($B$14/2))*COS(AL50) -> -40.48720309 | AP50: 15.35889742 | AQ50: =$B$8*COS(PI()+AP50)+(($B$8*AP50)+($B$10/2)-($B$14/2))*SIN(PI()+AP50)+$B$11*SIN($R$29) -> -10.96432698 | AR50: =$B$8*SIN(PI()+AP50) - (($B$8*AP50)+($B$10/2)-($B$14/2))*COS(PI()+AP50)+$B$11*COS($R$29) -> -33.60430965 | AT50: 12.21730476 | AU50: =$B$8*COS(AT50)+(($B$8*AT50)-($B$10/2)+($B$14/2))*SIN(AT50) -> -7.06529735 | AV50: =$B$8*SIN(AT50) - (($B$8*AT50)-($B$10/2)+($B$14/2))*COS(AT50) -> -26.39181378 | AX50: 9.07571211 | AY50: =$B$8*COS(PI()+AX50)+(($B$8*AX50)+($B$10/2)-($B$14/2))*SIN(PI()+AX50)+$B$11*SIN($R$29) -> -5.834024834 | AZ50: =$B$8*SIN(PI()+AX50) - (($B$8*AX50)+($B$10/2)-($B$14/2))*COS(PI()+AX50)+$B$11*COS($R$29) -> -19.50892034
B51: 1.698131701 | C51: 5.652211321 | D51: 3.130451955 | E51: 1.783786503 | F51: 2.635184934 | G51: 3.717998912 | H51: 2.882818444 | I51: -5.652211321 | J51: 0.3695480451 | K51: -1.783786503 | L51: 0.8648150664 | M51: -3.717998912 | N51: 0.6171815558 | S51: 0.5235987756 | T51: 1.15 | U51: 1.699038106 | X51: 105 | Y51: 24.14814566 | Z51: -6.470476128 | AA51: 24.14814566 | AB51: -2.970476128 | AD51: 21.99115 | AE51: -2.387396174 | AF51: 50.55 | AH51: 18.84956 | AI51: -2.38751563 | AJ51: 50.45 | AL51: 18.58775653 | AM51: -8.67441994 | AN51: -41.59728814 | AP51: 15.44616388 | AQ51: -7.742671377 | AR51: -34.61995516 | AT51: 12.30457123 | AU51: -4.792134263 | AV51: -27.10840074 | AX51: 9.162978573 | AY51: -3.860385701 | AZ51: -20.13106777
B52: 1.785398163 | C52: 5.561420516 | D52: 3.655528652 | E52: 1.750881586 | F52: 2.824990833 | G52: 3.656151051 | H52: 3.240259743 | I52: -5.561420516 | J52: -0.1555286525 | K52: -1.750881586 | L52: 0.6750091667 | M52: -3.656151051 | N52: 0.2597402571 | S52: 0.6108652382 | T52: 1.260364655 | U52: 1.628728066 | X52: 110 | Y52: 23.49231552 | Z52: -8.550503583 | AA52: 23.49231552 | AB52: -5.050503583 | AD52: 21.99115 | AE52: -2.387396174 | AF52: 50.55 | AH52: 18.84956 | AI52: -2.38751563 | AJ52: 50.45 | AL52: 18.675023 | AM52: -5.052145313 | AN52: -42.40019169 | AP52: 15.53343034 | AQ52: -4.427011873 | AR52: -35.35488378 | AT52: 12.39183769 | AU52: -2.447422648 | AV52: -27.6280754 | AX52: 9.250245036 | AY52: -1.822289208 | AZ52: -20.58276748
B53: 1.872664626 | C53: 5.420570379 | D53: 4.188266445 | E53: 1.696917842 | F53: 3.028778722 | G53: 3.558744111 | H53: 3.608522583 | I53: -5.420570379 | J53: -0.6882664448 | K53: -1.696917842 | L53: 0.4712212778 | M53: -3.558744111 | N53: -0.1085225835 | S53: 0.6981317008 | T53: 1.364181415 | U53: 1.549066665 | X53: 115 | Y53: 22.65769468 | Z53: -10.56545654 | AA53: 22.65769468 | AB53: -7.065456544 | AD53: 21.99115 | AE53: -2.387396174 | AF53: 50.55 | AH53: 18.84956 | AI53: -2.38751563 | AJ53: 50.45 | AL53: 18.76228946 | AM53: -1.355657622 | AN53: -42.8867102 | AP53: 15.62069681 | AQ53: -1.041896948 | AR53: -35.80040929 | AT53: 12.47910415 | AU53: -0.04832148042 | AV53: -27.94378973 | AX53: 9.337511498 | AY53: 0.2654391935 | AZ53: -20.85748882
B54: 1.959931089 | C54: 5.227669847 | D54: 4.723801832 | E54: 1.619242945 | F54: 3.244188608 | G54: 3.423456396 | H54: 3.98399522 | I54: -5.227669847 | J54: -1.223801832 | K54: -1.619242945 | L54: 0.2558113924 | M54: -3.423456396 | N54: -0.4839952198 | S54: 0.7853981634 | T54: 1.460660172 | U54: 1.460660172 | X54: 120 | Y54: 21.65063509 | Z54: -12.5 | AA54: 21.65063509 | AB54: -9 | AD54: 21.99115 | AE54: -2.387396174 | AF54: 50.55 | AH54: 18.84956 | AI54: -2.38751563 | AJ54: 50.45 | AL54: 18.84955592 | AM54: 2.387324146 | AN54: -43.05 | AP54: 15.70796327 | AQ54: 2.387324146 | AR54: -35.95 | AT54: 12.56637061 | AU54: 2.387324146 | AV54: -28.05 | AX54: 9.424777961 | AY54: 2.387324146 | AZ54: -20.95
B55: 2.047197551 | C55: 4.981206156 | D55: 5.256986142 | E55: 1.515467197 | F55: 3.468508166 | G55: 3.248336677 | H55: 4.362747154 | I55: -4.981206156 | J55: -1.756986142 | K55: -1.515467197 | L55: 0.0314918345 | M55: -3.248336677 | N55: -0.8627471536 | S55: 0.872664626 | T55: 1.549066665 | U55: 1.364181415 | X55: 125 | Y55: 20.47880111 | Z55: -14.33941091 | AA55: 20.47880111 | AB55: -10.83941091 | AD55: 21.99115 | AE55: -2.387396174 | AF55: 50.55 | AH55: 18.84956 | AI55: -2.38751563 | AJ55: 50.45 | AL55: 18.93682238 | AM55: 6.148451829 | AN55: -42.88565331 | AP55: 15.79522973 | AQ55: 5.834691155 | AR55: -35.79935239 | AT55: 12.65363708 | AU55: 4.841115688 | AV55: -27.94273283 | AX55: 9.512044423 | AY55: 4.527355014 | AZ55: -20.85643192
B56: 2.134464014 | C56: 4.680179046 | D56: 5.782432879 | E56: 1.383504397 | F56: 3.698701548 | G56: 3.031841721 | H56: 4.740567214 | I56: -4.680179046 | J56: -2.282432879 | K56: -1.383504397 | L56: -0.1987015483 | M56: -3.031841721 | N56: -1.240567214 | S56: 0.9599310886 | T56: 1.628728066 | U56: 1.260364655 | X56: 130 | Y56: 19.15111108 | Z56: -16.06969024 | AA56: 19.15111108 | AB56: -12.56969024 | AD56: 21.99115 | AE56: -2.387396174 | AF56: 50.55 | AH56: 18.84956 | AI56: -2.38751563 | AJ56: 50.45 | AL56: 19.02408885 | AM56: 9.898962784 | AN56: -42.39175584 | AP56: 15.88249619 | AQ56: 9.273829345 | AR56: -35.34644793 | AT56: 12.74090354 | AU56: 7.294240119 | AV56: -27.61963955 | AX56: 9.599310886 | AY56: 6.66910668 | AZ56: -20.57433164
B57: 2.221730476 | C57: 4.32413026 | D57: 6.294568833 | E57: 1.221609605 | F57: 3.931442601 | G57: 2.772869933 | H57: 5.113005717 | I57: -4.32413026 | J57: -2.794568833 | K57: -1.221609605 | L57: -0.4314426012 | M57: -2.772869933 | N57: -1.613005717 | S57: 1.047197551 | T57: 1.699038106 | U57: 1.15 | X57: 135 | Y57: 17.67766953 | Z57: -17.67766953 | AA57: 17.67766953 | AB57: -14.17766953 | AD57: 21.99115 | AE57: -2.387396174 | AF57: 50.55 | AH57: 18.84956 | AI57: -2.38751563 | AJ57: 50.45 | AL57: 19.11135531 | AM57: 13.60989984 | AN57: -41.56892551 | AP57: 15.96976266 | AQ57: 12.67815128 | AR57: -34.59159253 | AT57: 12.82817 | AU57: 9.727614167 | AV57: -27.08003811 | AX57: 9.686577349 | AY57: 8.795865605 | AZ57: -20.10270514
B58: 2.308996939 | C58: 3.913167956 | D58: 6.787688472 | E58: 1.028413351 | F58: 4.163152157 | G58: 2.470790654 | H58: 5.475420314 | I58: -3.913167956 | J58: -3.287688472 | K58: -1.028413351 | L58: -0.6631521571 | M58: -2.470790654 | N58: -1.975420314 | S58: 1.134464014 | T58: 1.759461681 | U58: 1.033927393 | X58: 140 | Y58: 16.06969024 | Z58: -19.15111108 | AA58: 16.06969024 | AB58: -15.65111108 | AD58: 21.99115 | AE58: -2.387396174 | AF58: 50.55 | AH58: 18.84956 | AI58: -2.38751563 | AJ58: 50.45 | AL58: 19.19862177 | AM58: 17.25233484 | AN58: -40.42033156 | AP58: 16.05702912 | AQ58: 16.02106232 | AR58: -33.53743813 | AT58: 12.91543646 | AU58: 12.12203269 | AV58: -26.32494225 | AX58: 9.773843811 | AY58: 10.89076017 | AZ58: -19.44204882
B59: 2.396263402 | C59: 3.447985683 | D59: 7.256011127 | E59: 0.8029518517 | F59: 4.390039035 | G59: 2.125468767 | H59: 5.823025081 | I59: -3.447985683 | J59: -3.756011127 | K59: -0.8029518517 | L59: -0.8900390355 | M59: -2.125468767 | N59: -2.323025081 | S59: 1.221730476 | T59: 1.809538931 | U59: 0.913030215 | X59: 145 | Y59: 14.33941091 | Z59: -20.47880111 | AA59: 14.33941091 | AB59: -16.97880111 | AD59: 21.99115 | AE59: -2.387396174 | AF59: 50.55 | AH59: 18.84956 | AI59: -2.38751563 | AJ59: 50.45 | AL59: 19.28588823 | AM59: 20.79759399 | AN59: -38.95169406 | AP59: 16.14429558 | AQ59: 19.27616825 | AR59: -32.18898603 | AT59: 13.00270293 | AU59: 14.45832006 | AV59: -25.35707726 | AX59: 9.861110274 | AY59: 12.93689432 | AZ59: -18.59436922
B60: 2.483529864 | C60: 2.929875626 | D60: 7.693740419 | E60: 0.5446928732 | F60: 4.608144328 | G60: 1.737284249 | H60: 6.150942373 | I60: -2.929875626 | J60: -4.193740419 | K60: -0.5446928732 | L60: -1.108144328 | M60: -1.737284249 | N60: -2.650942373 | S60: 1.308996939 | T60: 1.848888739 | U60: 0.7882285677 | X60: 150 | Y60: 12.5 | Z60: -21.65063509 | AA60: 12.5 | AB60: -18.15063509 | AD60: 21.99115 | AE60: -2.387396174 | AF60: 50.55 | AH60: 18.84956 | AI60: -2.38751563 | AJ60: 50.45 | AL60: 19.3731547 | AM60: 24.21748336 | AN60: -37.17126331 | AP60: 16.23156204 | AQ60: 22.41748336 | AR60: -30.55357186 | AT60: 13.08996939 | AU60: 16.71748336 | AV60: -24.18088226 | AX60: 9.948376736 | AY60: 14.91748336 | AZ60: -17.5631908
B61: 2.570796327 | C61: 2.360735884 | D61: 8.095125355 | E61: 0.2535568912 | F61: 4.813388514 | G61: 1.307146388 | H61: 6.454256935 | I61: -2.360735884 | J61: -4.595125355 | K61: -0.2535568912 | L61: -1.313388514 | M61: -1.307146388 | N61: -2.954256935 | S61: 1.396263402 | T61: 1.87721163 | U61: 0.6604722665 | X61: 155 | Y61: 10.56545654 | Z61: -22.65769468 | AA61: 10.56545654 | AB61: -19.15769468 | AD61: 21.99115 | AE61: -2.387396174 | AF61: 50.55 | AH61: 18.84956 | AI61: -2.38751563 | AJ61: 50.45 | AL61: 19.46042116 | AM61: 27.48451268 | AN61: -35.08977936 | AP61: 16.31882851 | AQ61: 25.41963751 | AR61: -28.640832 | AT61: 13.17723585 | AU61: 18.88086613 | AV61: -22.8024987 | AX61: 10.0356432 | AY61: 16.81599096 | AZ61: -16.35355134
B62: 2.658062789 | C62: 1.743071588 | D62: 8.45452252 | E62: -0.07006674047 | F62: 5.001620928 | G62: 0.8365024239 | H62: 6.728071724 | I62: -1.743071588 | J62: -4.95452252 | K62: 0.07006674047 | L62: -1.501620928 | M62: -0.8365024239 | N62: -3.228071724 | S62: 1.483529864 | T62: 1.894292047 | U62: 0.5307336141 | X62: 160 | Y62: =$C$26*SIN(X62*PI()/180) -> 8.550503583 | Z62: =$C$26*COS(X62*PI()/180) -> -23.49231552 | AA62: =$C$26*SIN(X62*PI()/180)+$B$11*SIN($R$29) -> 8.550503583 | AB62: =$C$26*COS(X62*PI()/180)+$B$11*COS($R$29) -> -19.99231552 | AD62: 21.99115 | AE62: -2.387396174 | AF62: 50.55 | AH62: 18.84956 | AI62: -2.38751563 | AJ62: 50.45 | AL62: 19.54768762 | AM62: 30.57211568 | AN62: -32.72041163 | AP62: 16.40609497 | AQ62: 28.25808028 | AR62: -26.46265164 | AT62: 13.26450232 | AU62: 20.93030153 | AV62: -21.22974499 | AX62: 10.12290966 | AY62: 18.61626614 | AZ62: -14.97198499
B63: 2.745329252 | C63: 1.079989734 | D63: 8.766458721 | E63: -0.425308853 | F63: 5.168671044 | G63: 0.3273404406 | H63: 6.967564883 | I63: -1.079989734 | J63: -5.266458721 | K63: 0.425308853 | L63: -1.668671044 | M63: -0.3273404406 | N63: -3.467564883 | S63: 1.570796327 | T63: 1.9 | U63: 0.4 | X63: 165 | Y63: 6.470476128 | Z63: -24.14814566 | AA63: 6.470476128 | AB63: -20.64814566 | AD63: 21.99115 | AE63: -2.387396174 | AF63: 50.55 | AH63: 18.84956 | AI63: -2.38751563 | AJ63: 50.45 | AL63: 19.63495408 | AM63: 33.45486524 | AN63: -30.07867905 | AP63: 16.49336143 | AQ63: 30.90928083 | AR63: -24.03309464 | AT63: 13.35176878 | AU63: 22.84826352 | AV63: -19.47207733 | AX63: 10.21017612 | AY63: 20.30267911 | AZ63: -13.42649292
B64: 2.832595715 | C64: 0.3751876666 | D64: 9.025693482 | E64: -0.8108149478 | F64: 5.310401057 | G64: -0.2178136406 | H64: 7.16804727 | I64: -0.3751876666 | J64: -5.525693482 | K64: 0.8108149478 | L64: -1.810401057 | M64: 0.2178136406 | N64: -3.66804727 | S64: 1.658062789 | T64: 1.894292047 | U64: 0.2692663859 | X64: 170 | Y64: 4.341204442 | Z64: -24.62019383 | AA64: 4.341204442 | AB64: -21.12019383 | AD64: 21.99115 | AE64: -2.387396174 | AF64: 50.55 | AH64: 18.84956 | AI64: -2.38751563 | AJ64: 50.45 | AL64: 19.72222055 | AM64: 36.10868158 | AN64: -27.18235105 | AP64: 16.58062789 | AQ64: 33.35092159 | AR64: -21.36831566 | AT64: 13.43903524 | AU64: 24.61801493 | AV64: -17.54053691 | AX64: 10.29744259 | AY64: 21.86025494 | AZ64: -11.72650151
B65: 2.919862177 | C65: -0.3670647918 | D65: 9.227280742 | E65: -1.224745237 | F65: 5.422759188 | G65: -0.7959050146 | H65: 7.325019965 | I65: 0.3670647918 | J65: -5.727280742 | K65: 1.224745237 | L65: -1.922759188 | M65: 0.7959050146 | N65: -3.825019965 | S65: 1.745329252 | T65: 1.87721163 | U65: 0.1395277335 | X65: 175 | Y65: 2.178893569 | Z65: -24.90486745 | AA65: 2.178893569 | AB65: -21.40486745 | AD65: 21.99115 | AE65: -2.387396174 | AF65: 50.55 | AH65: 18.84956 | AI65: -2.38751563 | AJ65: 50.45 | AL65: 19.80948701 | AM65: 38.51103182 | AN65: -24.05133013 | AP65: 16.66789436 | AQ65: 35.56208446 | AR65: -18.48645496 | AT65: 13.5263017 | AU65: 26.22375115 | AV65: -15.44768358 | AX65: 10.38470905 | AY65: 23.27480379 | AZ65: -9.882808414
B66: 3.00712864 | C66: -1.14194951 | D66: 9.366629125 | E66: -1.664780321 | F66: 5.501833148 | G66: -1.403364915 | H66: 7.434231136 | I66: 1.14194951 | J66: -5.866629125 | K66: 1.664780321 | L66: -2.001833148 | M66: 1.403364915 | N66: -3.934231136 | S66: 1.832595715 | T66: 1.848888739 | U66: 0.01177143235 | X66: 180 | Y66: 3.062871137e-15 | Z66: -25 | AA66: 5.635682893e-15 | AB66: -21.5 | AD66: 21.99115 | AE66: -2.387396174 | AF66: 50.55 | AH66: 18.84956 | AI66: -2.38751563 | AJ66: 50.45 | AL66: 19.89675347 | AM66: 40.64111922 | AN66: -20.70751664 | AP66: 16.75516082 | AQ66: 37.52342776 | AR66: -15.40751664 | AT66: 13.61356817 | AU66: 27.65073816 | AV66: -13.20751664 | AX66: 10.47197551 | AY66: 24.53304671 | AZ66: -7.907516642
B67: 3.094395102 | C67: -1.944130393 | D67: 9.439560149 | E67: -2.12813251 | F67: 5.54390318 | G67: -2.036131451 | H67: 7.491731665 | I67: 1.944130393 | J67: -5.939560149 | K67: 2.12813251 | L67: -2.04390318 | M67: 2.036131451 | N67: -3.991731665 | S67: 1.919862177 | T67: 1.809538931 | U67: -0.113030215 | X67: 185 | Y67: -2.178893569 | Z67: -24.90486745 | AA67: -2.178893569 | AB67: -21.40486745 | AD67: 21.99115 | AE67: -2.387396174 | AF67: 50.55 | AH67: 18.84956 | AI67: -2.38751563 | AJ67: 50.45 | AL67: 19.98401994 | AM67: 42.4800606 | AN67: -17.17465683 | AP67: 16.84242728 | AQ67: 39.21735257 | AR67: -12.15323109 | AT67: 13.70083463 | AU67: 28.8854438 | AV67: -10.8353829 | AX67: 10.55924197 | AY67: 25.62273576 | AZ67: -5.813957161
B68: 3.181661565 | C68: -2.767789722 | D68: 9.442363759 | E68: -2.611562779 | F68: 5.5454941 | G68: -2.689676251 | H68: 7.493928929 | I68: 2.767789722 | J68: -5.942363759 | K68: 2.611562779 | L68: -2.0454941 | M68: 2.689676251 | N68: -3.993928929 | S68: 2.00712864 | T68: 1.759461681 | U68: -0.2339273926 | X68: 190 | Y68: -4.341204442 | Z68: -24.62019383 | AA68: -4.341204442 | AB68: -21.12019383 | AD68: 21.99115 | AE68: -2.387396174 | AF68: 50.55 | AH68: 18.84956 | AI68: -2.38751563 | AJ68: 50.45 | AL68: 20.0712864 | AM68: 44.01105042 | AN68: -13.47817504 | AP68: 16.92969374 | AQ68: 40.62815698 | AR68: -8.746902522 | AT68: 13.78810109 | AU68: 29.9156611 | AV68: -8.347872888 | AX68: 10.64650844 | AY68: 26.53276767 | AZ68: -3.616600372
B69: 3.268928028 | C69: -3.606670245 | D69: 9.37185057 | E69: =$B$8*COS(B69)+(($B$8*B69)-($B$10/2)+($B$14/2))*SIN(B69) -> -3.111403223 | F69: =$B$8*SIN(B69) - (($B$8*B69)-($B$10/2)+($B$14/2))*COS(B69) -> 5.503425751 | G69: -3.359036734 | H69: 7.437638161 | I69: 3.606670245 | J69: -5.87185057 | K69: 3.111403223 | L69: -2.003425751 | M69: 3.359036734 | N69: -3.937638161 | S69: 2.094395102 | T69: 1.699038106 | U69: -0.35 | X69: 195 | Y69: -6.470476128 | Z69: -24.14814566 | AA69: -6.470476128 | AB69: -20.64814566 | AD69: 21.99115 | AE69: -2.387396174 | AF69: 50.55 | AH69: 18.84956 | AI69: -2.38751563 | AJ69: 50.45 | AL69: 20.15855286 | AM69: 45.21950998 | AN69: -9.644991359 | AP69: 17.01696021 | AQ69: 41.74217701 | AR69: -5.213242797 | AT69: 13.87536755 | AU69: 30.73062259 | AV69: -5.762705682 | AX69: 10.7337749 | AY69: 27.25328962 | AZ69: -1.33095712
B70: 3.35619449 | C70: -4.454122709 | D70: 9.225400255 | E70: -3.62358489 | F70: 5.414861326 | G70: -4.0388538 | H70: 7.320130791 | I70: 4.454122709 | J70: -5.725400255 | K70: 3.62358489 | L70: -1.914861326 | M70: 4.0388538 | N70: -3.820130791 | S70: 2.181661565 | T70: 1.628728066 | U70: -0.4603646545 | X70: 200 | Y70: -8.550503583 | Z70: -23.49231552 | AA70: -8.550503583 | AB70: -19.99231552 | AD70: 21.99115 | AE70: -2.387396174 | AF70: 50.55 | AH70: 18.84956 | AI70: -2.38751563 | AJ70: 50.45 | AL70: 20.24581932 | AM70: 46.09322076 | AN70: -5.703325979 | AP70: 17.10422667 | AQ70: 42.54791285 | AR70: -1.57819254 | AT70: 13.96263402 | AU70: 31.32110447 | AV70: -3.098603314 | AX70: 10.82104136 | AY70: 27.77579656 | AZ70: 1.026530125
B71: 3.443460953 | C71: -5.303158486 | D71: 9.001005512 | E71: -4.143670763 | F71: 5.277352974 | G71: -4.723414624 | H71: 7.139179243 | I71: 5.303158486 | J71: -5.501005512 | K71: 4.143670763 | L71: -1.777352974 | M71: 4.723414624 | N71: -3.639179243 | S71: 2.268928028 | T71: 1.549066665 | U71: -0.5641814145 | X71: 205 | Y71: -10.56545654 | Z71: -22.65769468 | AA71: -10.56545654 | AB71: -19.15769468 | AD71: 21.99115 | AE71: -2.387396174 | AF71: 50.55 | AH71: 18.84956 | AI71: -2.38751563 | AJ71: 50.45 | AL71: 20.33308579 | AM71: 46.62244032 | AN71: -1.682491657 | AP71: 17.19149313 | AQ71: 43.0361394 | AR71: 2.131269017 | AT71: 14.04990048 | AU71: 31.67951985 | AV71: -0.3751555157 | AX71: 10.90830782 | AY71: 28.09321893 | AZ71: 3.438605158
B72: 3.530727415 | C72: -6.146506855 | D72: 8.697311099 | E72: -4.666893631 | F72: 5.088884197 | G72: -5.406700243 | H72: 6.893097648 | I72: 6.146506855 | J72: -5.197311099 | K72: 4.666893631 | L72: -1.588884197 | M72: 5.406700243 | N72: -3.393097648 | S72: 2.35619449 | T72: 1.460660172 | U72: -0.6606601718 | X72: 210 | Y72: -12.5 | Z72: -21.65063509 | AA72: -12.5 | AB72: -18.15063509 | AD72: 21.99115 | AE72: -2.387396174 | AF72: 50.55 | AH72: 18.84956 | AI72: -2.38751563 | AJ72: 50.45 | AL72: 20.42035225 | AM72: 46.8 | AN72: 2.387324146 | AP72: 17.27875959 | AQ72: 43.2 | AR72: 5.887324146 | AT72: 14.13716694 | AU72: 31.8 | AV72: 2.387324146 | AX72: 10.99557429 | AY72: 28.2 | AZ72: 5.887324146
B73: 3.617993878 | C73: -6.976676503 | D73: 8.313647462 | E73: -5.188198527 | F73: 4.847908504 | G73: -6.082437515 | H73: 6.580777983 | I73: 6.976676503 | J73: -4.813647462 | K73: 5.188198527 | L73: -1.347908504 | M73: 6.082437515 | N73: -3.080777983 | S73: 2.443460953 | T73: 1.364181415 | U73: -0.7490666647 | X73: 215 | Y73: -14.33941091 | Z73: -20.47880111 | AA73: -14.33941091 | AB73: -16.97880111 | AD73: 21.99115 | AE73: -2.387396174 | AF73: 50.55 | AH73: 18.84956 | AI73: -2.38751563 | AJ73: 50.45 | AL73: 20.50761871 | AM73: 46.62138342 | AN73: 6.475285864 | AP73: 17.36602606 | AQ73: 43.03508251 | AR73: 9.66152519 | AT73: 14.2244334 | AU73: 31.67846295 | AV73: 5.167949723 | AX73: 11.08284075 | AY73: 28.09216204 | AZ73: 8.354189049
B74: 3.705260341 | C74: -7.786020697 | D74: 7.850058516 | E74: -5.702289366 | F74: 4.553383867 | G74: -6.744155032 | H74: 6.201721192 | I74: 7.786020697 | J74: -4.350058516 | K74: 5.702289366 | L74: -1.053383867 | M74: 6.744155032 | N74: -2.701721192 | S74: 2.530727415 | T74: 1.260364655 | U74: -0.8287280664 | X74: 220 | Y74: -16.06969024 | Z74: -19.15111108 | AA74: -16.06969024 | AB74: -15.65111108 | AD74: 21.99115 | AE74: -2.387396174 | AF74: 50.55 | AH74: 18.84956 | AI74: -2.38751563 | AJ74: 50.45 | AL74: 20.59488517 | AM74: 46.08478492 | AN74: 10.55014345 | AP74: 17.45329252 | AQ74: 42.53947701 | AR74: 13.42501001 | AT74: 14.31169987 | AU74: 31.31266862 | AV74: 7.945420785 | AX74: 11.17010721 | AY74: 27.76736071 | AZ74: 10.82028735
B75: 3.792526803 | C75: -8.566805594 | D75: 7.307323198 | E75: -6.203679362 | F75: 4.204802543 | G75: -7.385242478 | H75: 5.75606287 | I75: 8.566805594 | J75: -3.807323198 | K75: 6.203679362 | L75: -0.7048025427 | M75: 7.385242478 | N75: -2.25606287 | S75: 2.617993878 | T75: 1.15 | U75: -0.8990381057 | X75: 225 | Y75: -17.67766953 | Z75: -17.67766953 | AA75: -17.67766953 | AB75: -14.17766953 | AD75: 21.99115 | AE75: -2.387396174 | AF75: 50.55 | AH75: 18.84956 | AI75: -2.38751563 | AJ75: 50.45 | AL75: 20.68215164 | AM75: 45.19114736 | AN75: 14.58047126 | AP75: 17.54055898 | AQ75: 41.71381438 | AR75: 17.1487227 | AT75: 14.39896633 | AU75: 30.70225996 | AV75: 10.69818559 | AX75: 11.25737368 | AY75: 27.22492699 | AZ75: 13.26643702
B76: 3.879793266 | C76: -9.311281082 | D76: 6.686970461 | E76: -6.686744767 | F76: 3.802215856 | G76: -7.999012925 | H76: 5.244593159 | I76: 9.311281082 | J76: -3.186970461 | K76: 6.686744767 | L76: -0.3022158562 | M76: 7.999012925 | N76: -1.744593159 | S76: 2.705260341 | T76: 1.033927393 | U76: -0.9594616806 | X76: 230 | Y76: -19.15111108 | Z76: -16.06969024 | AA76: -19.15111108 | AB76: -12.56969024 | AD76: 21.99115 | AE76: -2.387396174 | AF76: 50.55 | AH76: 18.84956 | AI76: -2.38751563 | AJ76: 50.45 | AL76: 20.7694181 | AM76: 43.94417889 | AN76: 18.53491038 | AP76: 17.62782545 | AQ76: 40.56128546 | AR76: 20.80363786 | AT76: 14.48623279 | AU76: 29.84878958 | AV76: 13.40460823 | AX76: 11.34464014 | AY76: 26.46589614 | AZ76: 15.67333571
B77: 3.967059728 | C77: -10.01175352 | D77: 5.991287444 | E77: -7.145781432 | F77: 3.346253612 | G77: -8.578767478 | H77: 4.668770528 | I77: 10.01175352 | J77: -2.491287444 | K77: 7.145781432 | L77: 0.1537463876 | M77: 8.578767478 | N77: -1.168770528 | S77: 2.792526803 | T77: 0.913030215 | U77: -1.009538931 | X77: 235 | Y77: -20.47880111 | Z77: -14.33941091 | AA77: -20.47880111 | AB77: -10.83941091 | AD77: 21.99115 | AE77: -2.387396174 | AF77: 50.55 | AH77: 18.84956 | AI77: -2.38751563 | AJ77: 50.45 | AL77: 20.85668456 | AM77: 42.35034826 | AN77: 22.38241247 | AP77: 17.71509191 | AQ77: 39.08764023 | AR77: 24.36098673 | AT77: 14.57349925 | AU77: 28.75573146 | AV77: 16.04313854 | AX77: 11.4319066 | AY77: 25.49302342 | AZ77: 18.0217128
B78: 4.054326191 | C78: -10.66065974 | D78: 5.22332058 | E78: -7.575063646 | F78: 2.838137828 | G78: -9.117861691 | H78: 4.030729204 | I78: 10.66065974 | J78: -1.72332058 | K78: 7.575063646 | L78: 0.6618621725 | M78: 9.117861691 | N78: -0.5307292038 | S78: 2.879793266 | T78: 0.7882285677 | U78: -1.048888739 | X78: 240 | Y78: -21.65063509 | Z78: -12.5 | AA78: -21.65063509 | AB78: -9 | AD78: 21.99115 | AE78: -2.387396174 | AF78: 50.55 | AH78: 18.84956 | AI78: -2.38751563 | AJ78: 50.45 | AL78: 20.94395102 | AM78: 40.41885858 | AN78: 26.09248336 | AP78: 17.80235837 | AQ78: 37.30116713 | AR78: 27.79248336 | AT78: 14.66076572 | AU78: 27.42847752 | AV78: 18.59248336 | AX78: 11.51917306 | AY78: 24.31078607 | AZ78: 20.29248336
B79: 4.141592654 | C79: -11.25064155 | D79: 4.386869531 | E79: -7.968904707 | F79: 2.279690538 | G79: -9.609773128 | H79: 3.333280035 | I79: 11.25064155 | J79: -0.8868695311 | K79: 7.968904707 | L79: 1.220309462 | M79: 9.609773128 | N79: 0.1667199654 | S79: 2.967059728 | T79: 0.6604722665 | U79: -1.07721163 | X79: 245 | Y79: -22.65769468 | Z79: -10.56545654 | AA79: -22.65769468 | AB79: -7.065456544 | AD79: 21.99115 | AE79: -2.387396174 | AF79: 50.55 | AH79: 18.84956 | AI79: -2.38751563 | AJ79: 50.45 | AL79: 21.03121749 | AM79: 38.16159953 | AN79: 29.63542431 | AP79: 17.88962483 | AQ79: 35.21265217 | AR79: 31.07054914 | AT79: 14.74803218 | AU79: 25.87431886 | AV79: 21.03177777 | AX79: 11.60643953 | AY79: 22.9253715 | AZ79: 22.4669026
B80: 4.228859116 | C80: -11.7746202 | D80: 3.486473828 | E80: -8.321718612 | F80: 1.673335499 | G80: -10.04816941 | H80: 2.579904663 | I80: 11.7746202 | J80: 0.01352617246 | K80: 8.321718612 | L80: 1.826664501 | M80: 10.04816941 | N80: 0.9200953369 | S80: 3.054326191 | T80: 0.5307336141 | U80: -1.094292047 | X80: 250 | Y80: -23.49231552 | Z80: -8.550503583 | AA80: -23.49231552 | AB80: -5.050503583 | AD80: 21.99115 | AE80: -2.387396174 | AF80: 50.55 | AH80: 18.84956 | AI80: -2.38751563 | AJ80: 50.45 | AL80: 21.11848395 | AM80: 35.59307829 | AN80: 32.98256921 | AP80: 17.9768913 | AQ80: 32.8353183 | AR80: 34.16853382 | AT80: 14.83529864 | AU80: 24.10241165 | AV80: 23.34075507 | AX80: 11.69370599 | AY80: 21.34465165 | AZ80: 24.52671967
B81: 4.316125579 | C81: -12.22586995 | D81: 2.527392222 | E81: -8.628082272 | F81: 1.022093635 | G81: -10.42697611 | H81: 1.774742928 | I81: 12.22586995 | J81: 0.9726077781 | K81: 8.628082272 | L81: 2.477906365 | M81: 10.42697611 | N81: 1.725257072 | S81: 3.141592654 | T81: 0.4 | U81: -1.1 | X81: 255 | Y81: -24.14814566 | Z81: -6.470476128 | AA81: -24.14814566 | AB81: -2.970476128 | AD81: 21.99115 | AE81: -2.387396174 | AF81: 50.55 | AH81: 18.84956 | AI81: -2.38751563 | AJ81: 50.45 | AL81: 21.20575041 | AM81: 32.73032948 | AN81: 36.10651567 | AP81: 18.06415776 | AQ81: 30.18474507 | AR81: 37.06093125 | AT81: 14.9225651 | AU81: 22.12372776 | AV81: 25.49991395 | AX81: 11.78097245 | AY81: 19.57814335 | AZ81: 26.45432954
B82: 4.403392041 | C82: -12.59809004 | D82: 1.515574796 | E82: -8.882797619 | F82: 0.3295721815 | G82: -10.74044383 | H82: 0.9225734887 | I82: 12.59809004 | J82: 1.984425204 | K82: 8.882797619 | L82: 3.170427819 | M82: 10.74044383 | N82: 2.577426511 | S82: 3.228859116 | T82: 0.2692663859 | U82: -1.094292047 | X82: 260 | Y82: -24.62019383 | Z82: -4.341204442 | AA82: -24.62019383 | AB82: -0.8412044417 | AD82: 21.99115 | AE82: =$B$8*COS(AD82)+(($B$8*AD82)-($B$10/2)+($B$14/2))*SIN(AD82) -> -2.387396174 | AF82: =$B$8*SIN(AD82) - (($B$8*AD82)-($B$10/2)+($B$14/2))*COS(AD82) -> 50.55 | AH82: 18.84956 | AI82: =$B$8*COS(PI()+AH82)+(($B$8*AH82)+($B$10/2)-($B$14/2))*SIN(PI()+AH82)+$B$11*SIN($R$29) -> -2.38751563 | AJ82: =$B$8*SIN(PI()+AH82) - (($B$8*AH82)+($B$10/2)-($B$14/2))*COS(PI()+AH82)+$B$11*COS($R$29) -> 50.45 | AL82: 21.29301687 | AM82: =$B$8*COS(AL82)+(($B$8*AL82)-($B$10/2)+($B$14/2))*SIN(AL82) -> 29.59280459 | AN82: =$B$8*SIN(AL82) - (($B$8*AL82)-($B$10/2)+($B$14/2))*COS(AL82) -> 38.98134824 | AP82: 18.15142422 | AQ82: =$B$8*COS(PI()+AP82)+(($B$8*AP82)+($B$10/2)-($B$14/2))*SIN(PI()+AP82)+$B$11*SIN($R$29) -> 27.2787692 | AR82: =$B$8*SIN(PI()+AP82) - (($B$8*AP82)+($B$10/2)-($B$14/2))*COS(PI()+AP82)+$B$11*COS($R$29) -> 39.72358825 | AT82: 15.00983157 | AU82: =$B$8*COS(AT82)+(($B$8*AT82)-($B$10/2)+($B$14/2))*SIN(AT82) -> 19.95099045 | AV82: =$B$8*SIN(AT82) - (($B$8*AT82)-($B$10/2)+($B$14/2))*COS(AT82) -> 27.4906816 | AX82: 11.86823891 | AY82: =$B$8*COS(PI()+AX82)+(($B$8*AX82)+($B$10/2)-($B$14/2))*SIN(PI()+AX82)+$B$11*SIN($R$29) -> 17.63695505 | AZ82: =$B$8*SIN(PI()+AX82) - (($B$8*AX82)+($B$10/2)-($B$14/2))*COS(PI()+AX82)+$B$11*COS($R$29) -> 28.2329216
B83: 4.490658504 | C83: -12.88547454 | D83: 0.4576279444 | E83: -9.08095299 | F83: -0.4000525012 | G83: -10.98321377 | H83: 0.02878772159 | I83: 12.88547454 | J83: 3.042372056 | K83: 9.08095299 | L83: 3.900052501 | M83: 10.98321377 | N83: 3.471212278 | S83: 3.316125579 | T83: 0.1395277335 | U83: -1.07721163 | X83: 265 | Y83: -24.90486745 | Z83: -2.178893569 | AA83: -24.90486745 | AB83: 1.321106431 | AD83: 21.99115 | AE83: -2.387396174 | AF83: 50.55 | AH83: 18.84956 | AI83: -2.38751563 | AJ83: 50.45 | AL83: 21.38028334 | AM83: 26.20224177 | AN83: 41.58285198 | AP83: 18.23869068 | AQ83: 24.1373666 | AR83: 42.13390462 | AT83: 15.09709803 | AU83: 17.59859522 | AV83: 29.29557132 | AX83: 11.95550538 | AY83: 15.53372005 | AZ83: 29.84662396
B84: 4.577924967 | C84: -13.0827791 | D84: -0.6392275763 | E84: -9.217983126 | F84: -1.162058387 | G84: -11.15038111 | H84: -0.9006429817 | I84: 13.0827791 | J84: 4.139227576 | K84: 9.217983126 | L84: 4.662058387 | M84: 11.15038111 | N84: 4.400642982 | S84: 3.403392041 | T84: 0.01177143235 | U84: -1.048888739 | X84: 270 | Y84: -25 | Z84: -4.594306706e-15 | AA84: -25 | AB84: 3.5 | AD84: =IF( AD83>=21.99115, 21.99115, AD83+0.0872664625997164) -> 21.99115 | AE84: -2.387396174 | AF84: 50.55 | AH84: =IF( AH83>=18.84956, 18.84956, AH83+0.0872664625997164) -> 18.84956 | AI84: -2.38751563 | AJ84: 50.45 | AL84: =IF( AL83>=21.99115, 21.99115, AL83+0.0872664625997164) -> 21.4675498 | AM84: 22.58251664 | AN84: 43.88871448 | AP84: =IF( AP83>=18.84956, 18.84956, AP83+0.0872664625997164) -> 18.32595715 | AQ84: 20.78251664 | AR84: 44.27102303 | AT84: =IF( AT83>=21.99115, 21.99115, AT83+0.0872664625997164) -> 15.18436449 | AU84: 15.08251664 | AV84: 30.89833342 | AX84: =IF( AX83>=18.84956, 18.84956, AX83+0.0872664625997164) -> 12.04277184 | AY84: 13.28251664 | AZ84: 31.28064197
B85: 4.665191429 | C85: -13.18538416 | D85: -1.767205279 | E85: -9.289727189 | F85: -1.951207397 | G85: -11.23755567 | H85: -1.859206338 | I85: 13.18538416 | J85: 5.267205279 | K85: 9.289727189 | L85: 5.451207397 | M85: 11.23755567 | N85: 5.359206338 | S85: 3.490658504 | T85: -0.113030215 | U85: -1.009538931 | X85: 275 | Y85: -24.90486745 | Z85: 2.178893569 | AA85: -24.90486745 | AB85: 5.678893569 | AD85: 21.99115 | AE85: -2.387396174 | AF85: 50.55 | AH85: 18.84956 | AI85: -2.38751563 | AJ85: 50.45 | AL85: 21.55481626 | AM85: 18.75947531 | AN85: 45.8787148 | AP85: 18.41322361 | AQ85: 17.23804957 | AR85: 46.11600677 | AT85: 15.27163095 | AU85: 12.42020138 | AV85: 32.284098 | AX85: 12.1300383 | AY85: 10.89877564 | AZ85: 32.52138997
B86: 4.752457892 | C86: -13.18935382 | D86: -2.918007936 | E86: -9.292484157 | F86: -2.761780993 | G86: -11.24091899 | H86: -2.839894464 | I86: 13.18935382 | J86: 6.418007936 | K86: 9.292484157 | L86: 6.261780993 | M86: 11.24091899 | N86: 6.339894464 | S86: 3.577924967 | T86: -0.2339273926 | U86: -0.9594616806 | X86: 280 | Y86: -24.62019383 | Z86: 4.341204442 | AA86: -24.62019383 | AB86: 7.841204442 | AD86: 21.99115 | AE86: -2.387396174 | AF86: 50.55 | AH86: 18.84956 | AI86: -2.38751563 | AJ86: 50.45 | AL86: 21.64208272 | AM86: 14.76075058 | AN86: 47.53489774 | AP86: 18.50049007 | AQ86: 13.52947806 | AR86: 47.65200431 | AT86: 15.35889742 | AU86: 9.630448425 | AV86: 33.43950843 | AX86: 12.21730476 | AY86: 8.399175909 | AZ86: 33.556615
B87: 4.839724354 | C87: -13.09148982 | D87: -4.082888534 | E87: -9.223065 | F87: -3.587621513 | G87: -11.15727741 | H87: -3.835255024 | I87: 13.09148982 | J87: 7.582888534 | K87: 9.223065 | L87: 7.087621513 | M87: 11.15727741 | N87: 7.335255024 | S87: 3.665191429 | T87: -0.35 | U87: -0.8990381057 | X87: 285 | Y87: -24.14814566 | Z87: 6.470476128 | AA87: -24.14814566 | AB87: 9.970476128 | AD87: 21.99115 | AE87: -2.387396174 | AF87: 50.55 | AH87: 18.84956 | AI87: -2.38751563 | AJ87: 50.45 | AL87: 21.72934919 | AM87: 10.61556278 | AN87: 48.84173183 | AP87: 18.58775653 | AQ87: 9.683814216 | AR87: 48.86439886 | AT87: 15.44616388 | AU87: 6.733277101 | AV87: 34.35284444 | AX87: 12.30457123 | AY87: 5.801528539 | AZ87: 34.37551146
B88: 4.926990817 | C88: -12.88937999 | D88: -5.252716766 | E88: -9.078841066 | F88: -4.422178947 | G88: -10.98411053 | H88: -4.837447857 | I88: 12.88937999 | J88: 8.752716766 | K88: 9.078841066 | L88: 7.922178947 | M88: 10.98411053 | N88: 8.337447857 | S88: 3.752457892 | T88: -0.4603646545 | U88: -0.8287280664 | X88: 290 | Y88: -23.49231552 | Z88: 8.550503583 | AA88: -23.49231552 | AB88: 12.05050358 | AD88: 21.99115 | AE88: -2.387396174 | AF88: 50.55 | AH88: 18.84956 | AI88: -2.38751563 | AJ88: 50.45 | AL88: 21.81661565 | AM88: 6.354506645 | AN88: 49.78624984 | AP88: 18.675023 | AQ88: 5.729373206 | AR88: 49.74094193 | AT88: 15.53343034 | AU88: 3.74978398 | AV88: 35.01413354 | AX88: 12.39183769 | AY88: 3.124650541 | AZ88: 34.96882563
B89: 5.01425728 | C89: -12.58144064 | D89: -6.418050527 | E89: -8.857788107 | F89: -5.258562804 | G89: -10.71961438 | H89: -5.838306665 | I89: 12.58144064 | J89: 9.918050527 | K89: 8.857788107 | L89: 8.758562804 | M89: 10.71961438 | N89: 9.338306665 | S89: 3.839724354 | T89: -0.5641814145 | U89: -0.7490666647 | X89: 295 | Y89: -22.65769468 | Z89: 10.56545654 | AA89: -22.65769468 | AB89: 14.06545654 | AD89: 21.99115 | AE89: -2.387396174 | AF89: 50.55 | AH89: 18.84956 | AI89: -2.38751563 | AJ89: 50.45 | AL89: 21.90388211 | AM89: 2.009325692 | AN89: 50.35817044 | AP89: 18.76228946 | AQ89: 1.695565018 | AR89: 50.27186952 | AT89: 15.62069681 | AU89: 0.701989551 | AV89: 35.41524996 | AX89: 12.47910415 | AY89: 0.3882288771 | AZ89: 35.32894905
B90: 5.101523742 | C90: -12.16695235 | D90: -7.569211879 | E90: -8.558525449 | F90: -6.089598655 | G90: -10.3627389 | H90: -6.829405267 | I90: 12.16695235 | J90: 11.06921188 | K90: 8.558525449 | L90: 9.589598655 | M90: 10.3627389 | N90: 10.32940527 | S90: 3.926990817 | T90: -0.6606601718 | U90: -0.6606601718 | X90: 300 | Y90: -21.65063509 | Z90: 12.5 | AA90: -21.65063509 | AB90: 16 | AD90: 21.99115 | AE90: -2.387396174 | AF90: 50.55 | AH90: 18.84956 | AI90: -2.38751563 | AJ90: 50.45 | AL90: 21.99114858 | AM90: -2.387324146 | AN90: 50.55 | AP90: 18.84955592 | AQ90: -2.387324146 | AR90: 50.45 | AT90: 15.70796327 | AU90: -2.387324146 | AV90: 35.55 | AX90: 12.56637061 | AY90: -2.387324146 | AZ90: 35.45
B91: 5.188790205 | C91: -11.64608877 | D91: -8.696366865 | E91: -8.18034981 | F91: -6.907888889 | G91: -9.913219289 | H91: -7.802127877 | I91: 11.64608877 | J91: 12.19636687 | K91: 8.18034981 | L91: 10.40788889 | M91: 9.913219289 | N91: 11.30212788 | S91: 4.01425728 | T91: -0.7490666647 | U91: -0.5641814145 | X91: 305 | Y91: -20.47880111 | Z91: 14.33941091 | AA91: -20.47880111 | AB91: 17.83941091
B92: 5.276056667 | C92: -11.01993799 | D92: -9.789608515 | E92: -7.723263337 | F92: -7.705877184 | G92: -9.371600662 | H92: -8.747742849 | I92: 11.01993799 | J92: 13.28960851 | K92: 7.723263337 | L92: 11.20587718 | M92: 9.371600662 | N92: 12.24774285 | S92: 4.101523742 | T92: -0.8287280664 | U92: -0.4603646545 | X92: 310 | Y92: -19.15111108 | Z92: 16.06969024 | AA92: -19.15111108 | AB92: 19.56969024
B93: 5.36332313 | C93: -10.29051614 | D93: -10.83904235 | E93: -7.18799548 | F93: -8.475916123 | G93: -8.739255808 | H93: -9.657479239 | I93: 10.29051614 | J93: 14.33904235 | K93: 7.18799548 | L93: 11.97591612 | M93: 8.739255808 | N93: 13.15747924 | S93: 4.188790205 | T93: -0.8990381057 | U93: -0.35 | X93: 315 | Y93: -17.67766953 | Z93: 17.67766953 | AA93: -17.67766953 | AB93: 21.17766953
B94: 5.450589593 | C94: -9.460772966 | D94: -11.83487369 | E94: -6.576018361 | F94: -9.210337378 | G94: -8.018395664 | H94: -10.52260554 | I94: 9.460772966 | J94: 15.33487369 | K94: 6.576018361 | L94: 12.71033738 | M94: 8.018395664 | N94: 14.02260554 | S94: 4.276056667 | T94: -0.9594616806 | U94: -0.2339273926 | X94: 320 | Y94: =$C$26*SIN(X94*PI()/180) -> -16.06969024 | Z94: =$C$26*COS(X94*PI()/180) -> 19.15111108 | AA94: =$C$26*SIN(X94*PI()/180)+$B$11*SIN($R$29) -> -16.06969024 | AB94: =$C$26*COS(X94*PI()/180)+$B$11*COS($R$29) -> 22.65111108
B95: 5.537856055 | C95: -8.534589204 | D95: -12.76749592 | E95: -5.889555373 | F95: -9.901523828 | G95: -7.212072289 | H95: -11.33450987 | I95: 8.534589204 | J95: 16.26749592 | K95: 5.889555373 | L95: 13.40152383 | M95: 7.212072289 | N95: 14.83450987 | S95: 4.36332313 | T95: -1.009538931 | U95: -0.113030215 | X95: 325 | Y95: -14.33941091 | Z95: 20.47880111 | AA95: -14.33941091 | AB95: 23.97880111
B96: 5.625122518 | C96: -7.516765534 | D96: -13.62757906 | E96: -5.131582782 | F96: -10.54198296 | G96: -6.324174158 | H96: -12.08478101 | I96: 7.516765534 | J96: 17.12757906 | K96: 5.131582782 | L96: 14.04198296 | M96: 6.324174158 | N96: 15.58478101 | S96: 4.450589593 | T96: -1.048888739 | U96: 0.01177143235 | X96: 330 | Y96: -12.5 | Z96: 21.65063509 | AA96: -12.5 | AB96: 25.15063509
B97: 5.71238898 | C97: -6.413003178 | D97: -14.40615774 | E97: -4.305824185 | F97: -11.1244209 | G97: -5.359413682 | H97: -12.76528932 | I97: 6.413003178 | J97: 17.90615774 | K97: 4.305824185 | L97: 14.6244209 | M97: 5.359413682 | N97: 16.26528932 | S97: 4.537856055 | T97: -1.07721163 | U97: 0.1395277335 | X97: 335 | Y97: -10.56545654 | Z97: 22.65769468 | AA97: -10.56545654 | AB97: 26.15769468
B98: 5.799655443 | C98: -5.229876067 | D98: -15.09471789 | E98: -3.416737738 | F98: -11.6418163 | G98: -4.323306902 | H98: -13.36826709 | I98: 5.229876067 | J98: 18.59471789 | K98: 3.416737738 | L98: 15.1418163 | M98: 4.323306902 | N98: 16.86826709 | S98: 4.625122518 | T98: -1.094292047 | U98: 0.2692663859 | X98: 340 | Y98: -8.550503583 | Z98: 23.49231552 | AA98: -8.550503583 | AB98: 26.99231552
B99: 5.886921906 | C99: -3.97479471 | D99: -15.68528118 | E99: -2.469496122 | F99: -12.0874935 | G99: -3.222145416 | H99: -13.88638734 | I99: 3.97479471 | J99: 19.18528118 | K99: 2.469496122 | L99: 15.5874935 | M99: 3.222145416 | N99: 17.38638734 | S99: 4.71238898 | T99: -1.1 | U99: 0.4 | X99: 345 | Y99: -6.470476128 | Z99: 24.14814566 | AA99: -6.470476128 | AB99: 27.64814566
B100: 5.974188368 | C100: -2.655961925 | D100: -16.17048661 | E100: -1.469959311 | F100: -12.45519418 | G100: -2.062960618 | H100: -14.31284039 | I100: 2.655961925 | J100: 19.67048661 | K100: 1.469959311 | L100: 15.95519418 | M100: 2.062960618 | N100: 17.81284039 | S100: 4.799655443 | T100: -1.094292047 | U100: 0.5307336141 | X100: 350 | Y100: -4.341204442 | Z100: 24.62019383 | AA100: -4.341204442 | AB100: 28.12019383
B101: 6.061454831 | C101: -1.282320681 | D101: -16.54366835 | E101: -0.424640235 | F101: -12.73914679 | G101: -0.8534804578 | H101: -14.64140757 | I101: 1.282320681 | J101: 20.04366835 | K101: 0.424640235 | L101: 16.23914679 | M101: 0.8534804578 | N101: 18.14140757 | S101: 4.886921906 | T101: -1.07721163 | U101: 0.6604722665 | X101: 355 | Y101: -2.178893569 | Z101: 24.90486745 | AA101: -2.178893569 | AB101: 28.40486745
B102: 6.148721293 | C102: 0.1365056428 | D102: =$B$8*SIN(B102) - (B102*$B$8 + ($B$10/2) - ($B$14/2)) * COS(B102) -> -16.79892908 | E102: 0.6593364536 | F102: -12.9341331 | G102: =$B$8*COS(B102)+($B$8*B102)*SIN(B102) -> 0.3979210482 | H102: =$B$8*SIN(B102) - (B102*$B$8 ) * COS(B102) -> -14.86653109 | I102: =$B$8*COS(PI()+B102)+(($B$8*B102)+($B$10/2)-($B$14/2))*SIN(PI()+B102)+$B$11*SIN($R$29) -> -0.1365056428 | J102: =$B$8*SIN(PI()+B102) - (($B$8*B102)+($B$10/2)-($B$14/2))*COS(PI()+B102)+$B$11*COS($R$29) -> 20.29892908 | K102: =$B$8*COS(PI()+B102)+(($B$8*B102)-($B$10/2)+($B$14/2))*SIN(PI()+B102) +$B$11*SIN($R$29) -> -0.6593364536 | L102: =$B$8*SIN(PI()+B102) - (($B$8*B102)-($B$10/2)+($B$14/2))*COS(PI()+B102)+$B$11*COS($R$29) -> 16.4341331 | M102: =$B$8*COS(PI()+B102)+($B$8*B102)*SIN(PI()+B102)+$B$11*SIN($R$29) -> -0.3979210482 | N102: =$B$8*SIN(PI()+B102) - ($B$8*B102)*COS(PI()+B102)+$B$11*COS($R$29) -> 18.36653109 | S102: =S101+2*PI()*5/360 -> 4.974188368 | T102: -1.048888739 | U102: 0.7882285677 | X102: 360 | Y102: -6.125742275e-15 | Z102: 25 | AA102: -3.552930519e-15 | AB102: 28.5
B103: 6.235987756 | C103: 1.590280166 | D103: -16.93120817 | E103: 1.774282284 | F103: -13.0355512 | G103: 1.682281225 | H103: -14.98337968 | I103: -1.590280166 | J103: 20.43120817 | K103: -1.774282284 | L103: 16.5355512 | M103: -1.682281225 | N103: 18.48337968 | S103: 5.061454831 | T103: -1.009538931 | U103: 0.913030215
B104: 6.323254219 | C104: 3.06822615 | D104: -16.93634387 | E104: 2.911999207 | F104: -13.03947421 | G104: 2.990112678 | H104: -14.98790904 | I104: -3.06822615 | J104: 20.43634387 | K104: -2.911999207 | L104: 16.53947421 | M104: -2.990112678 | N104: 18.48790904 | S104: 5.148721293 | T104: -0.9594616806 | U104: 1.033927393
B105: 6.410520681 | C105: 4.559106824 | D105: -16.81112907 | E105: 4.063839803 | F105: -12.94270425 | G105: 4.311473313 | H105: -14.87691666 | I105: -4.559106824 | J105: 20.31112907 | K105: -4.063839803 | L105: 16.44270425 | M105: -4.311473313 | N105: 18.37691666 | S105: 5.235987756 | T105: -0.8990381057 | U105: 1.15
B106: 6.497787144 | C106: 6.051310823 | D106: -16.55335973 | E106: 5.220773004 | F106: -12.74282081 | G106: 5.636041913 | H106: -14.64809027 | I106: -6.051310823 | J106: 20.05335973 | K106: -5.220773004 | L106: 16.24282081 | M106: -5.636041913 | N106: 18.14809027 | S106: 5.323254219 | T106: -0.8287280664 | U106: 1.260364655
B107: 6.585053606 | C107: 7.532942568 | D107: -16.16187578 | E107: 6.373454845 | F107: -12.43822324 | G107: 6.953198706 | H107: -14.30004951 | I107: -7.532942568 | J107: 19.66187578 | K107: -6.373454845 | L107: 15.93822324 | M107: -6.953198706 | N107: 17.80004951 | S107: 5.410520681 | T107: -0.7490666647 | U107: 1.364181415
B108: 6.672320069 | C108: =$B$8*COS(B108)+(($B$8*B108)+($B$10/2) - ($B$14/2))*SIN(B108) -> 8.991916902 | D108: -15.6365936 | E108: 7.512303678 | F108: -12.0281667 | G108: 8.25211029 | H108: -13.83238015 | I108: -8.991916902 | J108: 19.1365936 | K108: -7.512303678 | L108: 15.5281667 | M108: -8.25211029 | N108: 17.33238015 | S108: 5.497787144 | T108: -0.6606601718 | U108: 1.460660172
B109: =B108+0.0872664625997164 -> 6.759586532 | C109: 10.41605723 | D109: -14.97853007 | E109: 8.627579251 | F109: -11.51279112 | G109: 9.521818239 | H109: -13.2456606 | I109: -10.41605723 | J109: 18.47853007 | K109: -8.627579251 | L109: 15.01279112 | M109: -9.521818239 | N109: 16.7456606 | S109: 5.585053606 | T109: -0.5641814145 | U109: 1.549066665
B110: 6.846852994 | C110: 11.79319633 | D110: -14.18981746 | E110: 9.709465002 | F110: -10.89314281 | G110: 10.75133067 | H110: -12.54148013 | I110: -11.79319633 | J110: 17.68981746 | K110: -9.709465002 | L110: 14.39314281 | M110: -10.75133067 | N110: 16.04148013 | S110: 5.672320069 | T110: =$V$43*SIN(S110)+$T$43 -> -0.4603646545 | U110: =$V$43*COS(S110) + $U$43 -> 1.628728066
B111: 6.934119457 | C111: 13.11127912 | D111: -13.27370907 | E111: 10.74815288 | F111: -10.17118842 | G111: 11.929716 | H111: -11.72244875 | I111: -13.11127912 | J111: 16.77370907 | K111: -10.74815288 | L111: 13.67118842 | M111: -11.929716 | N111: 15.22244875 | S111: =S110+2*PI()*5/360 -> 5.759586532 | T111: -0.35 | U111: 1.699038106
B112: 7.021385919 | C112: 14.3584663 | D112: -12.23457547 | E112: 11.73392999 | F112: -9.349820866 | G112: 13.04619815 | H112: -10.79219817 | I112: -14.3584663 | J112: 15.73457547 | K112: -11.73392999 | L112: 12.84982087 | M112: -13.04619815 | N112: 14.29219817 | S112: 5.846852994 | T112: -0.2339273926 | U112: 1.759461681
B113: 7.108652382 | C113: 15.52323832 | D113: -11.07789097 | E113: 12.65726622 | F113: -8.432857134 | G113: 14.09025227 | H113: -9.755374049 | I113: -15.52323832 | J113: 14.57789097 | K113: -12.65726622 | L113: 11.93285713 | M113: -14.09025227 | N113: 13.25537405 | S113: 5.934119457 | T113: -0.113030215 | U113: 1.809538931
B114: 7.195918845 | C114: 16.59449837 | D114: -9.810210489 | E114: 13.50890228 | F114: -7.425027736 | G114: 15.05170033 | H114: -8.617619112 | I114: -16.59449837 | J114: 13.31021049 | K114: -13.50890228 | L114: 10.92502774 | M114: -15.05170033 | N114: 12.11761911 | S114: 6.021385919 | T114: 0.01177143235 | U114: 1.848888739
B115: 7.283185307 | C115: 17.56167393 | D115: -8.439136825 | E115: 14.27993709 | F115: -6.331957832 | G115: 15.92080551 | H115: -7.385547329 | I115: -17.56167393 | J115: 11.93913683 | K115: -14.27993709 | L115: 9.831957832 | M115: -15.92080551 | N115: 10.88554733 | S115: 6.108652382 | T115: 0.1395277335 | U115: 1.87721163
B116: 7.37045177 | C116: 18.41481557 | D116: -6.973278306 | E116: 14.96191398 | F116: -5.160139977 | G116: 16.68836478 | H116: -6.066709142 | I116: -18.41481557 | J116: 10.47327831 | K116: -14.96191398 | L116: 8.660139977 | M116: -16.68836478 | N116: 9.566709142 | S116: 6.195918845 | T116: 0.2692663859 | U116: 1.894292047
B117: 7.457718232 | C117: 19.1446924 | D117: -5.422197197 | E117: 15.54690473 | F117: -3.91689861 | G117: 17.34579856 | H117: -4.669547904 | I117: -19.1446924 | J117: 8.922197197 | K117: -15.54690473 | L117: 7.41689861 | M117: -17.34579856 | N117: 8.169547904 | S117: 6.283185307 | T117: 0.4 | U117: 1.9
B118: 7.544984695 | C118: 19.74288317 | D118: -3.796349054 | E118: 16.02759074 | F118: -2.61034644 | G118: 17.88523696 | H118: -3.203347747 | I118: -19.74288317 | J118: 7.296349054 | K118: -16.02759074 | L118: 6.11034644 | M118: -17.88523696 | N118: 6.703347747
B119: 7.632251158 | C119: 20.20186215 | D119: -2.107013417 | E119: 16.39734059 | F119: -1.249332971 | G119: 18.29960137 | H119: -1.678173194 | I119: -20.20186215 | J119: 5.607013417 | K119: -16.39734059 | L119: 4.749332971 | M119: -18.29960137 | N119: 5.178173194
B120: 7.71951762 | C120: 20.51507906 | D120: -0.3662162907 | E120: 16.65028308 | F120: 0.1566145201 | G120: 18.58268107 | H120: -0.1048008853 | I120: -20.51507906 | J120: 3.866216291 | K120: -16.65028308 | L120: 3.34338548 | M120: -18.58268107 | N120: 3.604800885
B121: 7.806784083 | C121: 20.67703218 | D121: 1.413355053 | E121: 16.78137521 | F121: 1.597357171 | G121: 18.72920369 | H121: 1.505356112 | I121: -20.67703218 | J121: 2.086644947 | K121: -16.78137521 | L121: 1.902642829 | M121: -18.72920369 | N121: 1.994643888
B122: 7.894050545 | C122: 20.68333393 | D122: 3.218444363 | E122: 16.78646427 | F122: 3.062217421 | G122: 18.7348991 | H122: 3.140330892 | I122: -20.68333393 | J122: 0.2815556365 | K122: -16.78646427 | L122: 0.437782579 | M122: -18.7348991 | N122: 0.3596691077
B123: 7.981317008 | C123: 20.53076832 | D123: 5.035325114 | E123: 16.6623435 | F123: 4.540058093 | G123: 18.59655591 | H123: 4.787691603 | I123: -20.53076832 | J123: -1.535325114 | K123: -16.6623435 | L123: -1.040058093 | M123: -18.59655591 | N123: -1.287691603
B124: 8.068583471 | C124: 20.21733947 | D124: 6.84990488 | E124: 16.40680054 | F124: 6.019367061 | G124: 18.31207001 | H124: 6.43463597 | I124: -20.21733947 | J124: -3.34990488 | K124: -16.40680054 | L124: -2.519367061 | M124: -18.31207001 | N124: -2.93463597
B125: 8.155849933 | C125: 19.74231091 | D125: 8.647834609 | E125: 16.01865837 | F125: 7.488346886 | G125: 17.88048464 | H125: 8.068090747 | I125: -19.74231091 | J125: -5.147834609 | K125: -16.01865837 | L125: -3.988346886 | M125: -17.88048464 | N125: -4.568090747
B126: 8.243116396 | C126: 19.10623485 | D126: 10.41462193 | E126: 15.49780795 | F126: 8.935008702 | G126: 17.3020214 | H126: 9.674815314 | I126: -19.10623485 | J126: -6.914621926 | K126: -15.49780795 | L126: -5.435008702 | M126: -17.3020214 | N126: -6.174815314
B127: 8.330382858 | C127: 18.31097138 | D127: 12.13574759 | E127: 14.84523242 | F127: 10.34726961 | G127: 16.5781019 | H127: 11.2415086 | I127: -18.31097138 | J127: -8.635747589 | K127: -14.84523242 | L127: -6.847269612 | M127: -16.5781019 | N127: -7.7415086
B128: 8.417649321 | C128: 17.35969693 | D128: 13.79678415 | E128: 14.06302228 | F128: 11.71305282 | G128: 15.7113596 | H128: 12.75491849 | I128: -17.35969693 | J128: -10.29678415 | K128: -14.06302228 | L128: -8.21305282 | M128: -15.7113596 | N128: -9.254918485
B129: 8.504915784 | C129: 16.25690201 | D129: 15.38351588 | E129: 13.15438135 | F129: 13.02038965 | G129: 14.70564168 | H129: 14.20195276 | I129: -16.25690201 | J129: -11.88351588 | K129: -13.15438135 | L129: -9.520389645 | M129: -14.70564168 | N129: -10.70195276
B130: 8.592182246 | C130: 15.00837798 | D130: 16.88205891 | E130: 12.12362337 | F130: 14.2575226 | G130: 13.56600067 | H130: 15.56979076 | I130: -15.00837798 | J130: -13.38205891 | K130: -12.12362337 | L130: -10.7575226 | M130: -13.56600067 | N130: -12.06979076
B131: 8.679448709 | C131: 13.62119273 | D131: 18.27898071 | E131: 10.97615889 | F131: 15.41300862 | G131: 12.29867581 | H131: 16.84599467 | I131: -13.62119273 | J131: -14.77898071 | K131: -10.97615889 | L131: -11.91300862 | M131: -12.29867581 | N131: -13.34599467
B132: 8.766715171 | C132: 12.10365544 | D132: 19.56141769 | E132: 9.718472691 | F132: 16.4758216 | G132: 10.91106407 | H132: 18.01861965 | I132: -12.10365544 | J132: -16.06141769 | K132: -9.718472691 | L132: -12.9758216 | M132: -10.91106407 | N132: -14.51861965
B133: 8.853981634 | C133: 10.46527047 | D133: 20.71719013 | E133: =$B$8*COS(B133)+(($B$8*B133)-($B$10/2)+($B$14/2))*SIN(B133) -> 8.358091479 | F133: =$B$8*SIN(B133) - (($B$8*B133)-($B$10/2)+($B$14/2))*COS(B133) -> 17.43545329 | G133: 9.411680976 | H133: 19.07632171 | I133: -10.46527047 | J133: -17.21719013 | K133: -8.358091479 | L133: -13.93545329 | M133: -9.411680976 | N133: -15.57632171
B134: 8.941248097 | C134: 8.716680545 | D134: 21.73491326 | E134: 6.903542216 | F134: 18.28201166 | G134: 7.810111381 | H134: 20.00846246 | I134: -8.716680545 | J134: -18.23491326 | K134: -6.903542216 | L134: -14.78201166 | M134: -7.810111381 | N134: -16.50846246
B135: 9.028514559 | C135: 6.869599685 | D135: 22.60410363 | E135: 5.364301098 | F135: 19.00631595 | G135: 6.116950391 | H135: 20.80520979 | I135: -6.869599685 | J135: -19.10410363 | K135: -5.364301098 | L135: -15.50631595 | M135: -6.116950391 | N135: -17.30520979
B136: 9.115781022 | C136: 4.936736184 | D136: 23.31527973 | E136: 3.750733569 | F136: 19.5999873 | G136: 4.343734877 | H136: 21.45763352 | I136: -4.936736184 | J136: -19.81527973 | K136: -3.750733569 | L136: -16.0999873 | M136: -4.343734877 | N136: -17.95763352
B137: 9.203047484 | C137: 2.931706153 | D137: 23.86005595 | E137: 2.074025707 | F137: 20.05553439 | G137: 2.50286593 | H137: 21.95779517 | I137: -2.931706153 | J137: -20.36005595 | K137: -2.074025707 | L137: -16.55553439 | M137: -2.50286593 | N137: -18.45779517
B138: 9.290313947 | C138: 0.8689382241 | D138: 24.23122904 | E138: 0.3461074133 | F138: 20.36643306 | G138: 0.6075228187 | H138: 22.29883105 | I138: -0.8689382241 | J138: -20.73122904 | K138: -0.3461074133 | L138: -16.86643306 | M138: -0.6075228187 | N138: -18.79883105
B139: 9.37758041 | C139: -1.23642994 | D139: 24.42285618 | E139: -1.420432057 | F139: 20.52719922 | G139: -1.328430998 | H139: 22.4750277 | I139: 1.23642994 | J139: -20.92285618 | K139: 1.420432057 | L139: -17.02719922 | M139: 1.328430998 | N139: -18.9750277
B140: 9.464846872 | C140: -3.368662577 | D140: 24.43032399 | E140: -3.212435635 | F140: 20.53345433 | G140: -3.290549106 | H140: 22.48188916 | I140: 3.368662577 | J140: -20.93032399 | K140: 3.212435635 | L140: -17.03345433 | M140: 3.290549106 | N140: -18.98188916
B141: 9.552113335 | C141: -5.511543404 | D141: 24.25040756 | E141: -5.016276382 | F141: 20.38198275 | G141: -5.263909893 | H141: 22.31619516 | I141: 5.511543404 | J141: -20.75040756 | K141: 5.016276382 | L141: -16.88198275 | M141: 5.263909893 | N141: -18.81619516
B142: 9.639379797 | C142: -7.648498937 | D142: 23.88131921 | E142: -6.817961118 | F142: 20.07078028 | G142: -7.233230027 | H142: 21.97604975 | I142: 7.648498937 | J142: -20.38131921 | K142: 6.817961118 | L142: -16.57078028 | M142: 7.233230027 | N142: -18.47604975
B143: 9.72664626 | C143: -9.76272665 | D143: 23.32274604 | E143: -8.603238927 | F143: 19.5990935 | G143: -9.182982788 | H143: 21.46091977 | I143: 9.76272665 | J143: -19.82274604 | K143: 8.603238927 | L143: -16.0990935 | M143: 9.182982788 | N143: -17.96091977
B144: 9.813912723 | C144: -11.83732695 | D144: 22.57587611 | E144: -10.35771373 | F144: 18.9674492 | G144: -11.09752034 | H144: 20.77166266 | I144: 11.83732695 | J144: -19.07587611 | K144: 10.35771373 | L144: -15.4674492 | M144: 11.09752034 | N144: -17.27166266
B145: 9.901179185 | C145: -13.85543795 | D145: 21.64341269 | E145: -12.06695997 | F145: 18.17767373 | G145: -12.96119896 | H145: 19.91054321 | I145: 13.85543795 | J145: -18.14341269 | K145: 12.06695997 | L145: -14.67767373 | M145: 12.96119896 | N145: -16.41054321
B146: 9.988445648 | C146: -15.80037197 | D146: 20.5295764 | E146: -13.71664064 | F146: 17.23290175 | G146: -14.7585063 | H146: 18.88123907 | I146: 15.80037197 | J146: -17.0295764 | K146: 13.71664064 | L146: -13.73290175 | M146: 14.7585063 | N146: -15.38123907
B147: 10.07571211 | C147: -17.65575264 | D147: 19.24009495 | E147: -15.29262641 | F147: 16.13757429 | G147: -16.47418952 | H147: 17.68883462 | I147: 17.65575264 | J147: -15.74009495 | K147: 15.29262641 | L147: -12.63757429 | M147: 16.47418952 | N147: -14.18883462
B148: 10.16297857 | C148: -19.40565152 | D148: 17.78218048 | E148: -16.78111521 | F148: 14.89742588 | G148: -18.09338337 | H148: 16.33980318 | I148: 19.40565152 | J148: -14.28218048 | K148: 16.78111521 | L148: -11.39742588 | M148: 18.09338337 | N148: -12.83980318
B149: 10.25024504 | C149: -21.03472311 | D149: 16.16449449 | E149: -18.16875102 | F149: 13.51946066 | G149: -19.60173706 | H149: 14.84197757 | I149: 21.03472311 | J149: -12.66449449 | K149: 18.16875102 | L149: -10.01946066 | M149: 19.60173706 | N149: -11.34197757
B150: 10.3375115 | C150: -22.52833701 | D150: 14.3971004 | E150: -19.44274092 | F150: 12.01191764 | G150: -20.98553896 | H150: 13.20450902 | I150: 22.52833701 | J150: -10.8971004 | K150: 19.44274092 | L150: -8.511917645 | M150: 20.98553896 | N150: -9.704509021
B151: 10.42477796 | C151: -23.87270632 | D151: 12.49140412 | E151: -20.59096948 | F151: 10.38422513 | G151: -22.2318379 | H151: 11.43781462 | I151: 23.87270632 | J151: -8.991404119 | K151: 20.59096948 | L151: -6.884225126 | M151: 22.2318379 | N151: -7.937814623
B152: 10.51204442 | C152: -25.05501094 | D152: 10.46008278 | E152: -21.60210935 | F152: 8.646944456 | G152: -23.32856014 | H152: 9.55351362 | I152: 25.05501094 | J152: -6.960082784 | K152: 21.60210935 | L152: -5.146944456 | M152: 23.32856014 | N152: -6.05351362
B153: 10.59931089 | C153: -26.06351486 | D153: 8.317002173 | E153: -22.46572718 | F153: 6.811703585 | G153: -24.26462102 | H153: 7.564352879 | I153: 26.06351486 | J153: -4.817002173 | K153: 22.46572718 | L153: -3.311703585 | M153: 24.26462102 | N153: -4.064352879
B154: 10.68657735 | C154: -26.88767629 | D154: 6.077123313 | E154: -23.17238387 | F154: 4.891120699 | G154: -25.03003008 | H154: 5.484122006 | I154: 26.88767629 | J154: -2.577123313 | K154: 23.17238387 | L154: -1.391120699 | M154: 25.03003008 | N154: -1.984122006
B155: 10.77384381 | C155: -27.51824975 | D155: 3.756398889 | E155: -23.7137282 | F155: 2.898718444 | G155: -25.61598897 | H155: 3.327558666 | I155: 27.51824975 | J155: -0.2563988893 | K155: 23.7137282 | L155: 0.6012815564 | M155: 25.61598897 | N155: 0.1724413336
B156: 10.86111027 | C156: -27.94737901 | D156: 1.371660158 | E156: -24.08258304 | F156: 0.8488293468 | G156: -26.01498103 | H156: 1.110244752 | I156: 27.94737901 | J156: 2.128339842 | K156: 24.08258304 | L156: 2.651170653 | M156: 26.01498103 | N156: 2.389755248
B157: 10.94837674 | C157: -28.16868019 | D157: -1.059504826 | E157: -24.27302322 | F157: -1.243506944 | G157: -26.22085171 | H157: -1.151505885 | I157: 28.16868019 | J157: 4.559504826 | K157: 24.27302322 | L157: 4.743506944 | M157: 26.22085171 | N157: 4.651505885
B158: 11.0356432 | C158: -28.17731404 | D158: -3.518880791 | E158: -24.28044439 | F158: -3.362653849 | G158: -26.22887921 | H158: -3.44076732 | I158: 28.17731404 | J158: 7.018880791 | K158: 24.28044439 | L158: 6.862653849 | M158: 26.22887921 | N158: 6.94076732
B159: 11.12290966 | C159: -27.97004681 | D159: -5.987761693 | E159: -24.10162199 | F159: -5.492494672 | G159: -26.0358344 | H159: -5.740128183 | I159: 27.97004681 | J159: 9.487761693 | K159: 24.10162199 | L159: 8.992494672 | M159: 26.0358344 | N159: 9.240128183
B160: 11.21017612 | C160: -27.54529895 | D160: -8.447092994 | E160: -23.73476002 | F160: -7.616555174 | G160: -25.64002949 | H160: -8.031824084 | I160: 27.54529895 | J160: 11.94709299 | K160: 23.73476002 | L160: 11.11655517 | M160: 25.64002949 | N160: 11.53182408
B161: 11.29744259 | C161: -26.90318117 | D161: -10.87761869 | E161: -23.17952864 | F161: -9.718130968 | G161: -25.0413549 | H161: -10.29787483 | I161: 26.90318117 | J161: 14.37761869 | K161: 23.17952864 | L161: 13.21813097 | M161: 25.0413549 | N161: 13.79787483
B162: 11.38470905 | C162: -26.04551736 | D162: -13.26003197 | E162: -22.43709046 | F162: -11.78041875 | G162: -24.24130391 | H162: -12.52022536 | I162: 26.04551736 | J162: 16.76003197 | K162: 22.43709046 | L162: 15.28041875 | M162: 24.24130391 | N162: 16.02022536
B163: 11.47197551 | C163: -24.97585399 | D163: -15.57512831 | E163: -21.51011504 | F163: -13.78665034 | G163: -23.24298451 | H163: -14.68088932 | I163: 24.97585399 | J163: 19.07512831 | K163: 21.51011504 | L163: 17.28665034 | M163: 23.24298451 | N163: 18.18088932
B164: 11.55924197 | C164: -23.69945587 | D164: -17.80395979 | E164: -20.40278122 | F164: -15.72022846 | G164: -22.05111854 | H164: -16.76209412 | I164: 23.69945587 | J164: 21.30395979 | K164: 20.40278122 | L164: 19.22022846 | M164: 22.05111854 | N164: 20.26209412
B165: 11.64650844 | C165: -22.22328788 | D165: -19.9279894 | E165: -19.12076723 | F165: -17.56486317 | G165: -20.67202756 | H165: -18.74642628 | I165: 22.22328788 | J165: 23.4279894 | K165: 19.12076723 | L165: 21.06486317 | M165: 20.67202756 | N165: 22.24642628
B166: 11.7337749 | C166: -20.55598299 | D166: =$B$8*SIN(B166) - (B166*$B$8 + ($B$10/2) - ($B$14/2)) * COS(B166) -> -21.92924413 | E166: -17.67122838 | F166: -19.30470782 | G166: =$B$8*COS(B166)+($B$8*B166)*SIN(B166) -> -19.11360568 | H166: =$B$8*SIN(B166) - (B166*$B$8 ) * COS(B166) -> -20.61697598 | I166: =$B$8*COS(PI()+B166)+(($B$8*B166)+($B$10/2)-($B$14/2))*SIN(PI()+B166)+$B$11*SIN($R$29) -> 20.55598299 | J166: =$B$8*SIN(PI()+B166) - (($B$8*B166)+($B$10/2)-($B$14/2))*COS(PI()+B166)+$B$11*COS($R$29) -> 25.42924413 | K166: =$B$8*COS(PI()+B166)+(($B$8*B166)-($B$10/2)+($B$14/2))*SIN(PI()+B166) +$B$11*SIN($R$29) -> 17.67122838 | L166: =$B$8*SIN(PI()+B166) - (($B$8*B166)-($B$10/2)+($B$14/2))*COS(PI()+B166)+$B$11*COS($R$29) -> 22.80470782 | M166: =$B$8*COS(PI()+B166)+($B$8*B166)*SIN(PI()+B166)+$B$11*SIN($R$29) -> 19.11360568 | N166: =$B$8*SIN(PI()+B166) - ($B$8*B166)*COS(PI()+B166)+$B$11*COS($R$29) -> 24.11697598
B167: 11.82104136 | C167: -18.70779625 | D167: -23.7904655 | E167: -16.06276242 | F167: -20.92449341 | G167: -17.38527933 | H167: -22.35747946 | I167: 18.70779625 | J167: 27.2904655 | K167: 16.06276242 | L167: 24.42449341 | M167: 17.38527933 | N167: 25.85747946
B168: 11.90830782 | C168: -16.69054535 | D168: -25.49525633 | E168: -14.3053626 | F168: -22.40966024 | G168: -15.49795398 | H168: -23.95245828 | I168: 16.69054535 | J168: 28.99525633 | K168: 14.3053626 | L168: 25.90966024 | M168: 15.49795398 | N168: 27.45245828
B169: 11.99557429 | C169: -14.51753777 | D169: -27.02822251 | E169: -12.41035877 | F169: -23.74648567 | G169: -13.46394827 | H169: -25.38735409 | I169: 14.51753777 | J169: 30.52822251 | K169: 12.41035877 | L169: 27.24648567 | M169: 13.46394827 | N169: 28.88735409
B170: 12.08284075 | C170: -12.20348502 | D170: -28.37510862 | E170: -10.39034669 | F170: -24.92220703 | G170: -11.29691586 | H170: -26.64865783 | I170: 12.20348502 | J170: 31.87510862 | K170: 10.39034669 | L170: 28.42220703 | M170: 11.29691586 | N170: 30.14865783
B171: 12.17010721 | C171: -9.76440466 | D171: -29.52292608 | E171: -8.259106073 | F171: -25.92513841 | G171: -9.011755367 | H171: -27.72403225 | I171: 9.76440466 | J171: 33.02292608 | K171: 8.259106073 | L171: 29.42513841 | M171: 9.011755367 | N171: 31.22403225
B172: 12.25737368 | C172: =$B$8*COS(B172)+(($B$8*B172)+($B$10/2) - ($B$14/2))*SIN(B172) -> -7.217510442 | D172: -30.46007285 | E172: -6.031507828 | F172: -26.74478043 | G172: -6.624509135 | H172: -28.60242664 | I172: 7.217510442 | J172: 33.96007285 | K172: 6.031507828 | L172: 30.24478043 | M172: 6.624509135 | N172: 32.10242664
B173: =B172+0.0872664625997164 -> 12.34464014 | C173: -4.581091625 | D173: -31.17644355 | E173: -3.72341118 | F173: -27.371922 | G173: -4.152251403 | H173: -29.27418278 | I173: 4.581091625 | J173: 34.67644355 | K173: 3.72341118 | L173: 30.871922 | M173: 4.152251403 | N173: 32.77418278
B174: 12.4319066 | C174: -1.874382091 | D174: -31.66352899 | E174: -1.35155128 | F174: -27.79873301 | G174: -1.612966686 | H174: -29.731131 | I174: 1.874382091 | J174: 35.16352899 | K174: 1.35155128 | L174: 31.29873301 | M174: 1.612966686 | N174: 33.231131
B175: 12.51917306 | C175: 0.882579713 | D175: -31.9145042 | E175: 1.066581831 | F175: -28.01884723 | G175: 0.9745807719 | H175: -29.96667572 | I175: -0.882579713 | J175: 35.4145042 | K175: -1.066581831 | L175: 31.51884723 | M175: -0.9745807719 | N175: 33.46667572
B176: 12.60643953 | C176: 3.669099005 | D176: -31.9243041 | E176: 3.512872063 | F176: -28.02743444 | G176: 3.590985534 | H176: -29.97586927 | I176: -3.669099005 | J176: 35.4243041 | K176: -3.512872063 | L176: 31.52743444 | M176: -3.590985534 | N176: 33.47586927
B177: 12.69370599 | C177: 6.463979983 | D177: -31.68968606 | E177: 5.968712962 | F177: -27.82126124 | G177: 6.216346472 | H177: -29.75547365 | I177: -6.463979983 | J177: 35.18968606 | K177: -5.968712962 | L177: 31.32126124 | M177: -6.216346472 | N177: 33.25547365
B178: 12.78097245 | C178: 9.24568705 | D178: -31.20927869 | E178: 8.415149231 | F178: -27.39873976 | G178: 8.830418141 | H178: -29.30400923 | I178: -9.24568705 | J178: 34.70927869 | K178: -8.415149231 | L178: 30.89873976 | M178: -8.830418141 | N178: 32.80400923
B179: 12.86823891 | C179: 11.99251073 | D179: -30.48361631 | E179: 10.83302301 | F179: -26.75996377 | G179: 11.41276687 | H179: -28.62179004 | I179: -11.99251073 | J179: 33.98361631 | K179: -10.83302301 | L179: 30.25996377 | M179: -11.41276687 | N179: 32.12179004
B180: 12.95550538 | C180: 14.682737 | D180: -29.51515861 | E180: 13.20312377 | F180: -25.90673171 | G180: 13.94293038 | H180: -27.71094516 | I180: -14.682737 | J180: 33.01515861 | K180: -13.20312377 | L180: 29.40673171 | M180: -13.94293038 | N180: 31.21094516
B181: 13.04277184 | C181: 17.29481867 | D181: -28.3082953 | E181: 15.5063407 | F181: -24.84255634 | G181: 16.40057969 | H181: -26.57542582 | I181: -17.29481867 | J181: 31.8082953 | K181: -15.5063407 | L181: 28.34255634 | M181: -16.40057969 | N181: 30.07542582
B182: 13.1300383 | C182: 19.8075476 | D182: -26.86933534 | E182: 17.72381627 | F182: -23.57266069 | G182: 18.76568194 | H182: -25.22099801 | I182: -19.8075476 | J182: 30.36933534 | K182: -17.72381627 | L182: 27.07266069 | M182: -18.76568194 | N182: 28.72099801
B183: 13.21730476 | C183: 22.20022616 | D183: -25.20648082 | E183: 19.83709993 | F183: -22.10396017 | G183: 21.01866304 | H183: -23.65522049 | I183: -22.20022616 | J183: 28.70648082 | K183: -19.83709993 | L183: 25.60396017 | M183: -21.01866304 | N183: 27.15522049
B184: 13.30457123 | C184: 24.45283674 | D184: -23.32978549 | E184: 21.82830043 | F184: -20.44503089 | G184: 23.14056859 | H184: -21.88740819 | I184: -24.45283674 | J184: 26.82978549 | K184: -21.82830043 | L184: 23.94503089 | M184: -23.14056859 | N184: 25.38740819
B185: 13.39183769 | C185: 26.5462079 | D185: -21.25109801 | E185: 23.68023581 | F185: -18.60606418 | G185: 25.11322185 | H185: -19.92858109 | I185: -26.5462079 | J185: 24.75109801 | K185: -23.68023581 | L185: 22.10606418 | M185: -25.11322185 | N185: 23.42858109
B186: 13.47910415 | C186: 28.46217565 | D186: -18.98399031 | E186: 25.37657956 | F186: -16.59880755 | G186: 26.9193776 | H186: -17.79139893 | I186: -28.46217565 | J186: 22.48399031 | K186: -25.37657956 | L186: 20.09880755 | M186: -26.9193776 | N186: 21.29139893
B187: 13.56637061 | C187: 30.18373871 | D187: -16.54367141 | E187: 26.90200187 | F187: -14.43649242 | G187: 28.54287029 | H187: -15.49008192 | I187: -30.18373871 | J187: 20.04367141 | K187: -26.90200187 | L187: 17.93649242 | M187: -28.54287029 | N187: 18.99008192
B188: 13.65363708 | C188: 31.69520631 | D188: -13.94688726 | E188: 28.24230472 | F188: -12.13374893 | G188: 29.96875551 | H188: -13.0403181 | I188: -31.69520631 | J188: 17.44688726 | K188: -28.24230472 | L188: 15.63374893 | M188: -29.96875551 | N188: 16.5403181
B189: 13.74090354 | C189: 32.98233731 | D189: -11.21180715 | E189: 29.38454963 | F189: -9.706508561 | G189: 31.18344347 | H189: -10.45915785 | I189: -32.98233731 | J189: 14.71180715 | K189: -29.38454963 | L189: 13.20650856 | M189: -31.18344347 | N189: 13.95915785
B190: 13.82817 | C190: 34.03246941 | D190: -8.357897572 | E190: 30.31717699 | F190: -7.171894957 | G190: 32.1748232 | H190: -7.764896264 | I190: -34.03246941 | J190: 11.85789757 | K190: -30.31717699 | L190: 10.67189496 | M190: -32.1748232 | N190: 11.26489626
B191: 13.91543646 | C191: 34.83463735 | D191: -5.405784362 | E191: 31.0301158 | F191: -4.548103916 | G191: 32.93237658 | H191: -4.976944139 | I191: -34.83463735 | J191: 8.905784362 | K191: -31.0301158 | L191: 8.048103916 | M191: -32.93237658 | N191: 8.476944139
B192: 14.00270293 | C192: 35.37967897 | D192: -2.377104025 | E192: 31.51488299 | F192: -1.854273214 | G192: 33.44728098 | H192: -2.115688619 | I192: -35.37967897 | J192: 5.877104025 | K192: -31.51488299 | L192: 5.354273214 | M192: -33.44728098 | N192: 5.615688619
B193: 14.08996939 | C193: 35.66032821 | D193: 0.7056545998 | E193: 31.76467124 | F193: 0.8896567175 | G193: 33.71249973 | H193: 0.7976556586 | I193: -35.66032821 | J193: 2.7943454 | K193: -31.76467124 | L193: 2.610343282 | M193: -33.71249973 | N193: 2.702344341
B194: 14.17723585 | C194: 35.67129416 | D194: 3.819317219 | E194: 31.7744245 | F194: 3.663090277 | G194: 33.72285933 | H194: 3.741203748 | I194: -35.67129416 | J194: -0.3193172191 | K194: -31.7744245 | L194: -0.1630902766 | M194: -33.72285933 | N194: -0.2412037479
B195: 14.26450232 | C195: 35.40932531 | D195: 6.940198273 | E195: 31.54090049 | F195: 6.444931251 | G195: 33.4751129 | H195: 6.692564762 | I195: -35.40932531 | J195: -3.440198273 | K195: -31.54090049 | L195: -2.944931251 | M195: -33.4751129 | N195: -3.192564762
B196: 14.35176878 | C196: 34.87325843 | D196: 10.04428111 | E196: 31.0627195 | F196: 9.213743288 | G196: 32.96798897 | H196: 9.629012198 | I196: -34.87325843 | J196: -6.544281107 | K196: -31.0627195 | L196: -5.713743288 | M196: -32.96798897 | N196: -6.129012198
B197: 14.43903524 | C197: 34.06405144 | D197: 13.10740277 | E197: =$B$8*COS(B197)+(($B$8*B197)-($B$10/2)+($B$14/2))*SIN(B197) -> 30.3403989 | F197: =$B$8*SIN(B197) - (($B$8*B197)-($B$10/2)+($B$14/2))*COS(B197) -> 11.94791505 | G197: 32.20222517 | H197: 12.52765891 | I197: -34.06405144 | J197: -9.607402773 | K197: -30.3403989 | L197: -8.44791505 | M197: -32.20222517 | N197: -9.027658911
B198: 14.5263017 | C198: 32.98479986 | D198: 16.10544202 | E198: 29.37637296 | F198: 14.6258288 | G198: 31.18058641 | H198: 15.36563541 | I198: -32.98479986 | J198: -12.60544202 | K198: -29.37637296 | L198: -11.1258288 | M198: -31.18058641 | N198: -11.86563541
B199: 14.61356817 | C199: 31.64073661 | D199: 19.01450904 | E199: 28.17499765 | F199: 17.22603106 | G199: 29.90786713 | H199: 18.12027005 | I199: -31.64073661 | J199: -15.51450904 | K199: -28.17499765 | L199: -13.72603106 | M199: -29.90786713 | N199: -14.62027005
B200: 14.70083463 | C200: 30.03921481 | D200: 21.81113542 | E200: 26.74254016 | F200: 19.72740409 | G200: 28.39087748 | H200: 20.76926976 | I200: -30.03921481 | J200: -18.31113542 | K200: -26.74254016 | L200: -16.22740409 | M200: -28.39087748 | N200: -17.26926976
B201: 14.78810109 | C201: 28.18967376 | D201: 24.47246292 | E201: 25.0871531 | F201: 22.10933669 | G201: 26.63841343 | H201: 23.2908998 | I201: -28.18967376 | J201: -20.97246292 | K201: -25.0871531 | L201: -18.60933669 | M201: -26.63841343 | N201: -19.7908998
B202: 14.87536755 | C202: 26.103588 | D202: 26.97642935 | E202: 23.21883339 | F202: 24.35189304 | G202: 24.66121069 | H202: 25.6641612 | I202: -26.103588 | J202: -23.47642935 | K202: -23.21883339 | L202: -20.85189304 | M202: -24.66121069 | N202: -22.1641612
... 288 more rows
